{"text_format":"1","workbook":"xlsx","n_sheets":5,"sheets":["Guide d'utilisation","Exigences","Résultats globaux","Résultats par Article","Conseils"],"not_rendered":{"charts":11,"images":3,"macros":1,"external_links":0,"defined_names":11,"comments":1,"pivot_tables":0},"unopened":[],"bounds":{"document_bytes":16777216,"sheet_cells":100000,"rows_first":2000,"rows_last":500,"rows_between":2000,"halvings":0,"cell_chars":16384,"cell_head_chars":4096},"cells_cut":0,"cells_raw":0,"read":"whole","date_system":"1900"}

{"sheet":"Guide d'utilisation","index":0,"n_rows":22,"n_cols":14,"rows_kept":22,"cut":false,"hidden":false,"merged":[[13,1,13,9],[4,1,4,3],[4,4,4,9],[15,1,15,2],[3,1,3,9],[8,1,8,9],[9,1,12,9],[14,5,14,9],[5,4,5,9],[6,8,6,9],[14,1,14,4],[21,1,21,9],[16,1,16,2],[15,8,15,9],[16,8,16,9],[20,1,20,9],[19,1,19,2],[18,1,18,2],[17,1,17,2],[17,8,17,9],[18,8,18,9],[19,8,19,9],[1,3,1,9],[5,1,5,3],[6,1,6,3],[6,4,6,7],[2,3,2,9]]}
[null,"Document d'appui à la déclaration première partie de conformité à la norme ISO 30301:2011",null,null,null,null,null,null,null,"Enregistrement qualité :  A4 100% vertical"]
[null,null,null,"   Autodiagnostic selon la norme ISO 30301:2011"]
[null,null,null,"    \"Systèmes de gestion des documents d'activité - Exigences\"\nédition  Afnor, www.afnor.org, Décembre 2011"]
[null,"        Attention : Seules les cases blanches écrites en bleu peuvent être modifiées par l’utilisateur. Cela concerne toutes les parties de l’outil"]
[null,"Etablissement :",null,null,"Nom de l'établissement / entreprise / organisation..."]
[null," Responsable du SMQ : ",null,null,"NOM et Prénom du Responsable Qualité"]
[null," Contact du Responsable du SMQ :",null,null,"email :",null,null,null,"Tél :"]
[]
[null,"Mode d'emploi"]
[null,"\nOBJECTIF:   \nCet outil permet aux différents utilisateurs, et en particulier aux responsables qualité d'un organisme, d'évaluer la conformité du système de gestion des documents d'activité (SGDA) selon les exigences de la norme ISO 30301:2011. Il sert aussi de tableau de bord avec lequel vous pouvez commenter, suivre et évaluer la progression de la mise en oeuvre et du maitien de votre SGDA. Ainsi, il vous donnera plus de visibilité afin de prendre les décisions et d'élaborer des actions d'amélioration continue. \n(NB : Cet outil ne garantit pas une certification)\n\nPRESENTATION DES ELEMENTS:  \nLa grille est constituée de six (6) onglets :\n- Guide d'utilisation :\n         * Explicite le fonctionnement de l'outil et les critères d'évaluation définis\n- Exigences : \n         * Des critères d'évaluation par article et sous article sont définis\n         * Des commentaires explicitent les critères aux utilisateurs\n- Résultats et Actions :\n         * Tous les résultats sont réunis sur cet onglet \n- Résultats par article : \n         * Taux de CONFORMITÉ sous forme radar\n         * Les plans d'action prioritaires à mettre en œuvre et à déployer (Quoi, Qui, Quand...)                                                                                                           -Conseils : \n         * Expliquent globalement l'objet de chaque article de la norme  \n\n"]
[]
[null,null,null,null,null,null,null,null,null,null,null,null,"Utilitaires pour l'Autodiagnostic"]
[null,null,null,null,null,null,null,null,null,null,null,null,"Paramétrage des affectations selon le N° du choix"]
[null,null,null,null,null,null,null,null,null,null,null,null,"Utilisé pour  {Exigences} : affectation d'un N° selon le choix réalisé"]
[null,"Niveaux de VÉRACITÉ quant à la RÉALISATION \ndes actions associées aux exigences de la norme",null,null,null,"LIBELLÉS des niveaux de CONFORMITÉ \ndes ARTICLES de la norme ",null,null,null,null,null,null,"Choix proposé","A faire en manuel\nN° du choix croissant selon son  Ordre Alphabétique : 1 à …"]
[null,"Libellés explicites \ndes niveaux de VÉRACITÉ",null,"Choix de \nVÉRACITÉ","Taux de \nVÉRACITÉ","Taux moyen \nMinimal","Taux moyen\nMaximal","Niveaux de CONFORMITÉ","Libellés explicites \ndes niveaux de CONFORMITÉ",null,null,null,{"$f":"D16","v":"Choix de \rVÉRACITÉ"},1]
[null,"Niveau 1 : L'action n'est pas réalisée ou alors de manière très aléatoire.",null,"Faux",0,0,{"$f":"F18-0.01","v":9.0000000000000011E-2},"Insuffisant","Conformité de niveau 1 : Il est nécessaire de formaliser les activités réalisées.",null,null,null,{"$f":"D17","v":"Faux"},2]
[null,"Niveau 2 : L'action est réalisée quelques fois de manière informelle.",null,"Plutôt Faux",{"$f":"(F18+G18)/2","v":0.29499999999999998},0.1,{"$f":"F19-0.01","v":0.49},"Informel","Conformité de niveau 2 : Il est nécessaire de pérenniser la bonne exécution des activités.",null,null,null,{"$f":"D18","v":"Plutôt Faux"},3]
[null,"Niveau 3 : L'action est formalisée et réalisée. ",null,"Plutôt Vrai",{"$f":"(F19+G19)/2","v":0.69500000000000006},0.5,{"$f":"F20-0.01","v":0.89},"Convaincant","Conformité de niveau 3 : Il est nécessaire de tracer et d'améliorer les activités.",null,null,null,{"$f":"D19","v":"Plutôt Vrai"},4]
[null,"Niveau 4 : L'action est formalisée, réalisée, tracée et améliorée.",null,"Vrai",1,0.9,1,"Conforme","Conformité de niveau 4 : BRAVO ! Maintenez et communiquez vos résultats.",null,null,null,{"$f":"D20","v":"Vrai"},5]
[]
[null,"Pour en savoir plus : Mise en œuvre de la norme ISO 30301 « Système de gestion des documents d’activité », TEBOURBI Imen, Université de Technologie de Compiègne, Master Qualité et Performance dans les Organisations (QPO), Mémoire d'Intelligence Méthodologique de stage professionnel de fin d'études, www.utc.fr/master-qualite, puis \"Travaux\" \"Qualité-Management\", réf n°451, juillet 2018\nOutil d’Autodiagnostic : réalisé par Imen TEBOURBI (tebourbi.imen@outlook.com)"]

{"sheet":"Exigences","index":1,"n_rows":136,"n_cols":23,"rows_kept":136,"cut":false,"hidden":false,"merged":[[72,4,72,5],[76,4,76,5],[65,4,65,5],[54,4,54,5],[24,4,24,5],[25,4,25,5],[40,4,40,5],[41,4,41,5],[46,4,46,5],[30,4,30,5],[35,4,35,5],[13,29,13,31],[15,29,15,31],[12,29,12,31],[131,4,131,5],[84,4,84,5],[85,4,85,5],[92,4,92,5],[115,4,115,5],[102,4,102,5],[103,4,103,5],[109,4,109,5],[98,4,98,5],[120,4,120,5],[121,4,121,5],[55,4,55,5],[60,4,60,5],[1,1,1,5],[21,4,21,5],[3,0,3,1],[2,0,2,1],[2,2,2,5],[3,2,3,4],[5,2,5,3],[4,0,5,1],[6,0,7,1],[6,2,7,4],[3,5,7,5],[11,4,11,5],[16,4,16,5],[4,2,4,4],[10,4,10,5]]}
[{"$f":"'Guide d''utilisation'!B1","v":"Document d'appui à la déclaration première partie de conformité à la norme ISO 30301:2011"},null,null,null,null,"Impression sur pages A4 100% en format horizontal"]
[null,"  Autodiagnostic sur les exigences de l'ISO 30301:2011",null,null,null,null,null,null,null,null,null,null,null,null,null,null,"Somme des pondérations des Articles","Taux moyen de conformité sur la Norme","Niveau de RESPECT pour la norme"]
[{"$f":"'Guide d''utilisation'!B5","v":"Etablissement :"},null,{"$f":"'Guide d''utilisation'!E5","v":"Nom de l'établissement / entreprise / organisation..."},null,null,null,null,null,null,null,"Somme des pondérations sur les exigences","Taux  moyen de CONFORMITÉ pour le sous-article","Niveau de RESPECT pour le sous-article","Automatique : pondération de chaque sous- chapitre","Taux  moyen de CONFORMITÉ pondéré pour le sous-article"]
["Date de l'autodiagnostic : ",null,null,null,null,"Signature du responsable de l'autodiagnostic :\n\n\n\n\n"]
["Responsable de l'autodiagnostic : ",null,"NOM et Prénom",null,null,null,null,"Choix réalisé","N° du choix réalisé","% Véracité du choix","Automatique : pondération de chaque exigence","Taux de CONFORMITÉ pondéré sur l'exigence",null,null,null,"Resultats, Actions et REX "]
[null,null,"Tél :",null,"Email :"]
["L'équipe d'autodiagnostic :",null,"Noms et Prénoms des participants"]
[]
[]
["Réf.","Critères d'exigence des articles de la norme","Evaluations","Taux %","Libellés \ndes évaluations","Modes de preuve \net commentaires",null,null,null,null,null,null,null,null,null,null,null,null,null,null,null,"Choix proposé","A faire en manuel\nN° du choix croissant selon son  Ordre Alphabétique : 1 à …"]
["Art. 4","Contexte de l'organisme",{"$f":"P11","v":"Insuffisant"},{"$f":"O11","v":0},{"$f":"IFERROR(IF(D11<='Guide d''utilisation'!$G$17,'Guide d''utilisation'!$I$17,IF(D11<='Guide d''utilisation'!$G$18,'Guide d''utilisation'!$I$18,IF(D11<='Guide d''utilisation'!$G$19,'Guide d''utilisation'!$I$19,'Guide d''utilisation'!$I$20))),\"\")","v":"Conformité de niveau 1 : Il est nécessaire de formaliser les activités réalisées."},null,null,"Article",null,null,null,null,"vérifier si Somme = 1 =>  ",{"$f":"SUM(N12:N24)","v":1},{"$f":"IFERROR(SUM(O12:O24),\"\")","v":0},{"$f":"IFERROR(IF(O11<='Guide d''utilisation'!$G$17,'Guide d''utilisation'!$H$17,IF(O11<='Guide d''utilisation'!$G$18,'Guide d''utilisation'!$H$18,IF(O11<='Guide d''utilisation'!$G$19,'Guide d''utilisation'!$H$19,'Guide d''utilisation'!$H$20))),\"\")","v":"Insuffisant"},{"$f":"1/7","v":0.14285714285714285},{"$f":"O11*Q11","v":0},null,null,null,"Choix de \nVÉRACITÉ",1]
["4.1","Compréhension de l'organisme et de son contexte",{"$f":"M12","v":"Insuffisant"},{"$f":"L12","v":0},{"$f":"IFERROR(IF(D12<='Guide d''utilisation'!$G$17,'Guide d''utilisation'!$I$17,IF(D12<='Guide d''utilisation'!$G$18,'Guide d''utilisation'!$I$18,IF(D12<='Guide d''utilisation'!$G$19,'Guide d''utilisation'!$I$19,'Guide d''utilisation'!$I$20))),\"\")","v":"Conformité de niveau 1 : Il est nécessaire de formaliser les activités réalisées."},null,"Nb critères","Sous-Article",null,"vérifier si Somme = 1 =>  ",{"$f":"SUM(K13:K16)","v":1},{"$f":"IFERROR(SUM(L13:L16),\"\")","v":0},{"$f":"IFERROR(IF(L12<='Guide d''utilisation'!$G$17,'Guide d''utilisation'!$H$17,IF(L12<='Guide d''utilisation'!$G$18,'Guide d''utilisation'!$H$18,IF(L12<='Guide d''utilisation'!$G$19,'Guide d''utilisation'!$H$19,'Guide d''utilisation'!$H$20))),\"\")","v":"Insuffisant"},{"$f":"1/COUNTA($M$12:$M$24)","v":0.33333333333333331},{"$f":"N12*L12","v":0},null,null,null,null,null,null,"Faux",2]
["cr 1","Les enjeux externes et internes sont identifiés et documentés lors de l'établissement et de la revue du Système de Gestion des Documents d'Activités (SGDA)","Choix de \nVÉRACITÉ",{"$f":"J13","v":""},{"$f":"CHOOSE(I13,\"Libellé du critère quand il sera choisi\",'Guide d''utilisation'!$B$17,'Guide d''utilisation'!$B$18,'Guide d''utilisation'!$B$19,'Guide d''utilisation'!$B$20,,)","v":"Libellé du critère quand il sera choisi"},null,1,{"$f":"C13","v":"Choix de \rVÉRACITÉ"},{"$f":"IFERROR((VLOOKUP(C13,'Guide d''utilisation'!$M$16:$N$20,2)),\"\")","v":1},{"$f":"IFERROR(CHOOSE(I13,\"\",'Guide d''utilisation'!$E$17,'Guide d''utilisation'!$E$18,'Guide d''utilisation'!$E$19,'Guide d''utilisation'!$E$20,),\"\")","v":""},{"$f":"1/COUNTA($B$13:$B$16)","v":0.25},{"$f":"IFERROR(J13*K13,\"\")","v":""},null,null,null,null,null,null,null,null,null,"Plutôt Faux",3]
[{"$f":"CONCATENATE(\"cr \",MID(A13,3,4)+1)","v":"cr 2"},"Les facteurs d'influence sur les objectifs de l'organisme sont pris en compte","Choix de \nVÉRACITÉ",{"$f":"J14","v":""},{"$f":"CHOOSE(I14,\"Libellé du critère quand il sera choisi\",'Guide d''utilisation'!$B$17,'Guide d''utilisation'!$B$18,'Guide d''utilisation'!$B$19,'Guide d''utilisation'!$B$20,,)","v":"Libellé du critère quand il sera choisi"},null,{"$f":"G13+1","v":2},{"$f":"C14","v":"Choix de \rVÉRACITÉ"},{"$f":"IFERROR((VLOOKUP(C14,'Guide d''utilisation'!$M$16:$N$20,2)),\"\")","v":1},{"$f":"IFERROR(CHOOSE(I14,\"\",'Guide d''utilisation'!$E$17,'Guide d''utilisation'!$E$18,'Guide d''utilisation'!$E$19,'Guide d''utilisation'!$E$20,),\"\")","v":""},{"$f":"1/COUNTA($B$13:$B$16)","v":0.25},{"$f":"IFERROR(J14*K14,\"\")","v":""},null,null,null,null,null,null,null,null,null,"Plutôt Vrai",4]
[{"$f":"CONCATENATE(\"cr \",MID(A14,3,4)+1)","v":"cr 3"},"Les parties prenantes ainsi que leurs attentes sont identifiés ","Choix de \nVÉRACITÉ",{"$f":"J15","v":""},{"$f":"CHOOSE(I15,\"Libellé du critère quand il sera choisi\",'Guide d''utilisation'!$B$17,'Guide d''utilisation'!$B$18,'Guide d''utilisation'!$B$19,'Guide d''utilisation'!$B$20,,)","v":"Libellé du critère quand il sera choisi"},null,{"$f":"G14+1","v":3},{"$f":"C15","v":"Choix de \rVÉRACITÉ"},{"$f":"IFERROR((VLOOKUP(C15,'Guide d''utilisation'!$M$16:$N$20,2)),\"\")","v":1},{"$f":"IFERROR(CHOOSE(I15,\"\",'Guide d''utilisation'!$E$17,'Guide d''utilisation'!$E$18,'Guide d''utilisation'!$E$19,'Guide d''utilisation'!$E$20,),\"\")","v":""},{"$f":"1/COUNTA($B$13:$B$16)","v":0.25},{"$f":"IFERROR(J15*K15,\"\")","v":""},null,null,null,null,null,null,null,null,null,"Vrai",5]
["cr 4","La gouvernance, la structure organisationnelle, les rôles et les responsabilités sont pris en considération ","Choix de \nVÉRACITÉ","",{"$f":"CHOOSE(I16,\"Libellé du critère quand il sera choisi\",'Guide d''utilisation'!$B$17,'Guide d''utilisation'!$B$18,'Guide d''utilisation'!$B$19,'Guide d''utilisation'!$B$20,,)","v":"Libellé du critère quand il sera choisi"},null,4,"Choix de \rVÉRACITÉ",{"$f":"IFERROR((VLOOKUP(C16,'Guide d''utilisation'!$M$16:$N$20,2)),\"\")","v":1},{"$f":"IFERROR(CHOOSE(I16,\"\",'Guide d''utilisation'!$E$17,'Guide d''utilisation'!$E$18,'Guide d''utilisation'!$E$19,'Guide d''utilisation'!$E$20,),\"\")","v":""},0.25,""]
["4.2","Exigences opérationnelles, exigences légales et autres exigences",{"$f":"M17","v":"Insuffisant"},{"$f":"L17","v":0},{"$f":"IFERROR(IF(D17<='Guide d''utilisation'!$G$17,'Guide d''utilisation'!$I$17,IF(D17<='Guide d''utilisation'!$G$18,'Guide d''utilisation'!$I$18,IF(D17<='Guide d''utilisation'!$G$19,'Guide d''utilisation'!$I$19,'Guide d''utilisation'!$I$20))),\"\")","v":"Conformité de niveau 1 : Il est nécessaire de formaliser les activités réalisées."},null,null,"Sous-Article",null,"vérifier si Somme = 1 =>  ",{"$f":"SUM(K18:K21)","v":1},{"$f":"IFERROR(SUM(L18:L21),\"\")","v":0},{"$f":"IFERROR(IF(L17<='Guide d''utilisation'!$G$17,'Guide d''utilisation'!$H$17,IF(L17<='Guide d''utilisation'!$G$18,'Guide d''utilisation'!$H$18,IF(L17<='Guide d''utilisation'!$G$19,'Guide d''utilisation'!$H$19,'Guide d''utilisation'!$H$20))),\"\")","v":"Insuffisant"},{"$f":"1/COUNTA($M$12:$M$24)","v":0.33333333333333331},{"$f":"N17*L17","v":0}]
[{"$f":"CONCATENATE(\"cr \",MID(A16,3,4)+1)","v":"cr 5"},"Les besoins opérationnels, les exigences légales, réglementaires ainsi que les autres exigences afféctant l'activité sont pris en compte lors de l'établissement et la revue des objectifs","Choix de \nVÉRACITÉ",{"$f":"J18","v":""},{"$f":"CHOOSE(I18,\"Libellé du critère quand il sera choisi\",'Guide d''utilisation'!$B$17,'Guide d''utilisation'!$B$18,'Guide d''utilisation'!$B$19,'Guide d''utilisation'!$B$20,,)","v":"Libellé du critère quand il sera choisi"},null,{"$f":"G16+1","v":5},{"$f":"C18","v":"Choix de \rVÉRACITÉ"},{"$f":"IFERROR((VLOOKUP(C18,'Guide d''utilisation'!$M$16:$N$20,2)),\"\")","v":1},{"$f":"IFERROR(CHOOSE(I18,\"\",'Guide d''utilisation'!$E$17,'Guide d''utilisation'!$E$18,'Guide d''utilisation'!$E$19,'Guide d''utilisation'!$E$20,),\"\")","v":""},{"$f":"1/COUNTA($B$18:$B$21)","v":0.25},{"$f":"IFERROR(J18*K18,\"\")","v":""}]
[{"$f":"CONCATENATE(\"cr \",MID(A18,3,4)+1)","v":"cr 6"},"Les exigences opérationnelles, les exigences légales, réglementaires et les autres exigences affectant l'activité sont évaluées et documentées","Choix de \nVÉRACITÉ",{"$f":"J19","v":""},{"$f":"CHOOSE(I19,\"Libellé du critère quand il sera choisi\",'Guide d''utilisation'!$B$17,'Guide d''utilisation'!$B$18,'Guide d''utilisation'!$B$19,'Guide d''utilisation'!$B$20,,)","v":"Libellé du critère quand il sera choisi"},null,{"$f":"G18+1","v":6},{"$f":"C19","v":"Choix de \rVÉRACITÉ"},{"$f":"IFERROR((VLOOKUP(C19,'Guide d''utilisation'!$M$16:$N$20,2)),\"\")","v":1},{"$f":"IFERROR(CHOOSE(I19,\"\",'Guide d''utilisation'!$E$17,'Guide d''utilisation'!$E$18,'Guide d''utilisation'!$E$19,'Guide d''utilisation'!$E$20,),\"\")","v":""},{"$f":"1/COUNTA($B$18:$B$21)","v":0.25},{"$f":"IFERROR(J19*K19,\"\")","v":""}]
[{"$f":"CONCATENATE(\"cr \",MID(A19,3,4)+1)","v":"cr 7"},"Les exigences opérationnelles sont liées à la performance de l'entreprise, à la planification, à la gestion des risques et au plan de continuité des activités ","Choix de \nVÉRACITÉ",{"$f":"J20","v":""},{"$f":"CHOOSE(I20,\"Libellé du critère quand il sera choisi\",'Guide d''utilisation'!$B$17,'Guide d''utilisation'!$B$18,'Guide d''utilisation'!$B$19,'Guide d''utilisation'!$B$20,,)","v":"Libellé du critère quand il sera choisi"},null,{"$f":"G19+1","v":7},{"$f":"C20","v":"Choix de \rVÉRACITÉ"},{"$f":"IFERROR((VLOOKUP(C20,'Guide d''utilisation'!$M$16:$N$20,2)),\"\")","v":1},{"$f":"IFERROR(CHOOSE(I20,\"\",'Guide d''utilisation'!$E$17,'Guide d''utilisation'!$E$18,'Guide d''utilisation'!$E$19,'Guide d''utilisation'!$E$20,),\"\")","v":""},{"$f":"1/COUNTA($B$18:$B$21)","v":0.25},{"$f":"IFERROR(J20*K20,\"\")","v":""}]
["cr 8","Une veille réglementaire et normative sont mises en place","Choix de \nVÉRACITÉ","",{"$f":"CHOOSE(I21,\"Libellé du critère quand il sera choisi\",'Guide d''utilisation'!$B$17,'Guide d''utilisation'!$B$18,'Guide d''utilisation'!$B$19,'Guide d''utilisation'!$B$20,,)","v":"Libellé du critère quand il sera choisi"},null,8,"Choix de \rVÉRACITÉ",{"$f":"IFERROR((VLOOKUP(C21,'Guide d''utilisation'!$M$16:$N$20,2)),\"\")","v":1},{"$f":"IFERROR(CHOOSE(I21,\"\",'Guide d''utilisation'!$E$17,'Guide d''utilisation'!$E$18,'Guide d''utilisation'!$E$19,'Guide d''utilisation'!$E$20,),\"\")","v":""},0.25,""]
["4.3","Détermination du domaine d'application du SGDA",{"$f":"M22","v":"Insuffisant"},{"$f":"L22","v":0},{"$f":"IFERROR(IF(D22<='Guide d''utilisation'!$G$17,'Guide d''utilisation'!$I$17,IF(D22<='Guide d''utilisation'!$G$18,'Guide d''utilisation'!$I$18,IF(D22<='Guide d''utilisation'!$G$19,'Guide d''utilisation'!$I$19,'Guide d''utilisation'!$I$20))),\"\")","v":"Conformité de niveau 1 : Il est nécessaire de formaliser les activités réalisées."},null,null,"Sous-Article",null,"vérifier si Somme = 1 =>  ",{"$f":"SUM(K23:K24)","v":1},{"$f":"IFERROR(SUM(L23:L24),\"\")","v":0},{"$f":"IFERROR(IF(L22<='Guide d''utilisation'!$G$17,'Guide d''utilisation'!$H$17,IF(L22<='Guide d''utilisation'!$G$18,'Guide d''utilisation'!$H$18,IF(L22<='Guide d''utilisation'!$G$19,'Guide d''utilisation'!$H$19,'Guide d''utilisation'!$H$20))),\"\")","v":"Insuffisant"},{"$f":"1/COUNTA($M$12:$M$24)","v":0.33333333333333331},{"$f":"N22*L22","v":0}]
[{"$f":"CONCATENATE(\"cr \",MID(A21,3,4)+1)","v":"cr 9"},"Le domaine d'application du SGDA est défini et documenté en déterminant ses limites et son applicabilité","Choix de \nVÉRACITÉ",{"$f":"J23","v":""},{"$f":"CHOOSE(I23,\"Libellé du critère quand il sera choisi\",'Guide d''utilisation'!$B$17,'Guide d''utilisation'!$B$18,'Guide d''utilisation'!$B$19,'Guide d''utilisation'!$B$20,,)","v":"Libellé du critère quand il sera choisi"},null,{"$f":"G21+1","v":9},{"$f":"C23","v":"Choix de \rVÉRACITÉ"},{"$f":"IFERROR((VLOOKUP(C23,'Guide d''utilisation'!$M$16:$N$20,2)),\"\")","v":1},{"$f":"IFERROR(CHOOSE(I23,\"\",'Guide d''utilisation'!$E$17,'Guide d''utilisation'!$E$18,'Guide d''utilisation'!$E$19,'Guide d''utilisation'!$E$20,),\"\")","v":""},{"$f":"1/COUNTA($B$23:$B$24)","v":0.5},{"$f":"IFERROR(J23*K23,\"\")","v":""}]
[{"$f":"CONCATENATE(\"cr \",MID(A23,3,4)+1)","v":"cr 10"},"Les processus externalisés et les sous-traitants sont controlés et identifiés ","Choix de \nVÉRACITÉ",{"$f":"J24","v":""},{"$f":"CHOOSE(I24,\"Libellé du critère quand il sera choisi\",'Guide d''utilisation'!$B$17,'Guide d''utilisation'!$B$18,'Guide d''utilisation'!$B$19,'Guide d''utilisation'!$B$20,,)","v":"Libellé du critère quand il sera choisi"},null,{"$f":"G23+1","v":10},{"$f":"C24","v":"Choix de \rVÉRACITÉ"},{"$f":"IFERROR((VLOOKUP(C24,'Guide d''utilisation'!$M$16:$N$20,2)),\"\")","v":1},{"$f":"IFERROR(CHOOSE(I24,\"\",'Guide d''utilisation'!$E$17,'Guide d''utilisation'!$E$18,'Guide d''utilisation'!$E$19,'Guide d''utilisation'!$E$20,),\"\")","v":""},{"$f":"1/COUNTA($B$23:$B$24)","v":0.5},{"$f":"IFERROR(J24*K24,\"\")","v":""}]
["Art. 5","Leadership",{"$f":"P25","v":"Insuffisant"},{"$f":"O25","v":0},{"$f":"IFERROR(IF(D25<='Guide d''utilisation'!$G$17,'Guide d''utilisation'!$I$17,IF(D25<='Guide d''utilisation'!$G$18,'Guide d''utilisation'!$I$18,IF(D25<='Guide d''utilisation'!$G$19,'Guide d''utilisation'!$I$19,'Guide d''utilisation'!$I$20))),\"\")","v":"Conformité de niveau 1 : Il est nécessaire de formaliser les activités réalisées."},null,null,"Article",null,null,null,null,"vérifier si Somme = 1 =>  ",{"$f":"SUM(N26:N37)","v":1},{"$f":"IFERROR(SUM(O26:O40),\"\")","v":0},{"$f":"IFERROR(IF(O25<='Guide d''utilisation'!$G$17,'Guide d''utilisation'!$H$17,IF(O25<='Guide d''utilisation'!$G$18,'Guide d''utilisation'!$H$18,IF(O25<='Guide d''utilisation'!$G$19,'Guide d''utilisation'!$H$19,'Guide d''utilisation'!$H$20))),\"\")","v":"Insuffisant"},{"$f":"1/7","v":0.14285714285714285},{"$f":"O25*Q25","v":0}]
["5.1","Leadership et engagement",{"$f":"M26","v":"Insuffisant"},{"$f":"L26","v":0},{"$f":"IFERROR(IF(D26<='Guide d''utilisation'!$G$17,'Guide d''utilisation'!$I$17,IF(D26<='Guide d''utilisation'!$G$18,'Guide d''utilisation'!$I$18,IF(D26<='Guide d''utilisation'!$G$19,'Guide d''utilisation'!$I$19,'Guide d''utilisation'!$I$20))),\"\")","v":"Conformité de niveau 1 : Il est nécessaire de formaliser les activités réalisées."},null,null,"Sous-Article",null,"vérifier si Somme = 1 =>  ",{"$f":"SUM(K27:K30)","v":1},{"$f":"IFERROR(SUM(L27:L30),\"\")","v":0},{"$f":"IFERROR(IF(L26<='Guide d''utilisation'!$G$17,'Guide d''utilisation'!$H$17,IF(L26<='Guide d''utilisation'!$G$18,'Guide d''utilisation'!$H$18,IF(L26<='Guide d''utilisation'!$G$19,'Guide d''utilisation'!$H$19,'Guide d''utilisation'!$H$20))),\"\")","v":"Insuffisant"},{"$f":"1/COUNTA($M$26:$M$37)","v":0.33333333333333331},{"$f":"N26*L26","v":0}]
[{"$f":"CONCATENATE(\"cr \",MID(A24,3,4)+1)","v":"cr 11"},"La direction assure la compatibilité du SGDA avec l'orientation stratégique de l'entreprise en intégrant les exigences dans les processus métier et en sensibilisant le personnel par des actions de communication","Choix de \nVÉRACITÉ",{"$f":"J27","v":""},{"$f":"CHOOSE(I27,\"Libellé du critère quand il sera choisi\",'Guide d''utilisation'!$B$17,'Guide d''utilisation'!$B$18,'Guide d''utilisation'!$B$19,'Guide d''utilisation'!$B$20,,)","v":"Libellé du critère quand il sera choisi"},null,{"$f":"G24+1","v":11},{"$f":"C27","v":"Choix de \rVÉRACITÉ"},{"$f":"IFERROR((VLOOKUP(C27,'Guide d''utilisation'!$M$16:$N$20,2)),\"\")","v":1},{"$f":"IFERROR(CHOOSE(I27,\"\",'Guide d''utilisation'!$E$17,'Guide d''utilisation'!$E$18,'Guide d''utilisation'!$E$19,'Guide d''utilisation'!$E$20,),\"\")","v":""},{"$f":"1/COUNTA($B$27:$B$30)","v":0.25},{"$f":"IFERROR(J27*K27,\"\")","v":""}]
[{"$f":"CONCATENATE(\"cr \",MID(A27,3,4)+1)","v":"cr 12"},"La direction s'assure de la disponibilité des ressources nécessaires pour le SGDA","Choix de \nVÉRACITÉ",{"$f":"J28","v":""},{"$f":"CHOOSE(I28,\"Libellé du critère quand il sera choisi\",'Guide d''utilisation'!$B$17,'Guide d''utilisation'!$B$18,'Guide d''utilisation'!$B$19,'Guide d''utilisation'!$B$20,,)","v":"Libellé du critère quand il sera choisi"},null,{"$f":"G27+1","v":12},{"$f":"C28","v":"Choix de \rVÉRACITÉ"},{"$f":"IFERROR((VLOOKUP(C28,'Guide d''utilisation'!$M$16:$N$20,2)),\"\")","v":1},{"$f":"IFERROR(CHOOSE(I28,\"\",'Guide d''utilisation'!$E$17,'Guide d''utilisation'!$E$18,'Guide d''utilisation'!$E$19,'Guide d''utilisation'!$E$20,),\"\")","v":""},{"$f":"1/COUNTA($B$27:$B$30)","v":0.25},{"$f":"IFERROR(J28*K28,\"\")","v":""}]
[{"$f":"CONCATENATE(\"cr \",MID(A28,3,4)+1)","v":"cr 13"},"La direction s'assure que les objectifs relatifs aux documents d'activité sont atteints","Choix de \nVÉRACITÉ",{"$f":"J29","v":""},{"$f":"CHOOSE(I29,\"Libellé du critère quand il sera choisi\",'Guide d''utilisation'!$B$17,'Guide d''utilisation'!$B$18,'Guide d''utilisation'!$B$19,'Guide d''utilisation'!$B$20,,)","v":"Libellé du critère quand il sera choisi"},null,{"$f":"G28+1","v":13},{"$f":"C29","v":"Choix de \rVÉRACITÉ"},{"$f":"IFERROR((VLOOKUP(C29,'Guide d''utilisation'!$M$16:$N$20,2)),\"\")","v":1},{"$f":"IFERROR(CHOOSE(I29,\"\",'Guide d''utilisation'!$E$17,'Guide d''utilisation'!$E$18,'Guide d''utilisation'!$E$19,'Guide d''utilisation'!$E$20,),\"\")","v":""},{"$f":"1/COUNTA($B$27:$B$30)","v":0.25},{"$f":"IFERROR(J29*K29,\"\")","v":""}]
[{"$f":"CONCATENATE(\"cr \",MID(A29,3,4)+1)","v":"cr 14"},"La direction soutient une politique d'amélioration continue","Choix de \nVÉRACITÉ",{"$f":"J30","v":""},{"$f":"CHOOSE(I30,\"Libellé du critère quand il sera choisi\",'Guide d''utilisation'!$B$17,'Guide d''utilisation'!$B$18,'Guide d''utilisation'!$B$19,'Guide d''utilisation'!$B$20,,)","v":"Libellé du critère quand il sera choisi"},null,{"$f":"G29+1","v":14},{"$f":"C30","v":"Choix de \rVÉRACITÉ"},{"$f":"IFERROR((VLOOKUP(C30,'Guide d''utilisation'!$M$16:$N$20,2)),\"\")","v":1},{"$f":"IFERROR(CHOOSE(I30,\"\",'Guide d''utilisation'!$E$17,'Guide d''utilisation'!$E$18,'Guide d''utilisation'!$E$19,'Guide d''utilisation'!$E$20,),\"\")","v":""},{"$f":"1/COUNTA($B$27:$B$30)","v":0.25},{"$f":"IFERROR(J30*K30,\"\")","v":""}]
["5.2","Politique",{"$f":"M31","v":"Insuffisant"},{"$f":"L31","v":0},{"$f":"IFERROR(IF(D31<='Guide d''utilisation'!$G$17,'Guide d''utilisation'!$I$17,IF(D31<='Guide d''utilisation'!$G$18,'Guide d''utilisation'!$I$18,IF(D31<='Guide d''utilisation'!$G$19,'Guide d''utilisation'!$I$19,'Guide d''utilisation'!$I$20))),\"\")","v":"Conformité de niveau 1 : Il est nécessaire de formaliser les activités réalisées."},null,null,"Sous-Article",null,"vérifier si Somme = 1 =>  ",{"$f":"SUM(K32:K35)","v":1},{"$f":"IFERROR(SUM(L32:L35),\"\")","v":0},{"$f":"IFERROR(IF(L31<='Guide d''utilisation'!$G$17,'Guide d''utilisation'!$H$17,IF(L31<='Guide d''utilisation'!$G$18,'Guide d''utilisation'!$H$18,IF(L31<='Guide d''utilisation'!$G$19,'Guide d''utilisation'!$H$19,'Guide d''utilisation'!$H$20))),\"\")","v":"Insuffisant"},{"$f":"1/COUNTA($M$26:$M$37)","v":0.33333333333333331},{"$f":"N31*L31","v":0}]
[{"$f":"CONCATENATE(\"cr \",MID(A30,3,4)+1)","v":"cr 15"},"La direction établit une politique qui est en accord avec la finalité de l'entreprise et qui inclut les objectifs stratégiques du SGDA","Choix de \nVÉRACITÉ",{"$f":"J32","v":""},{"$f":"CHOOSE(I32,\"Libellé du critère quand il sera choisi\",'Guide d''utilisation'!$B$17,'Guide d''utilisation'!$B$18,'Guide d''utilisation'!$B$19,'Guide d''utilisation'!$B$20,,)","v":"Libellé du critère quand il sera choisi"},null,{"$f":"G30+1","v":15},{"$f":"C32","v":"Choix de \rVÉRACITÉ"},{"$f":"IFERROR((VLOOKUP(C32,'Guide d''utilisation'!$M$16:$N$20,2)),\"\")","v":1},{"$f":"IFERROR(CHOOSE(I32,\"\",'Guide d''utilisation'!$E$17,'Guide d''utilisation'!$E$18,'Guide d''utilisation'!$E$19,'Guide d''utilisation'!$E$20,),\"\")","v":""},{"$f":"1/COUNTA($B$32:$B$35)","v":0.25},{"$f":"IFERROR(J32*K32,\"\")","v":""}]
[{"$f":"CONCATENATE(\"cr \",MID(A32,3,4)+1)","v":"cr 16"},"La politique est disponible et tenue à jour","Choix de \nVÉRACITÉ",{"$f":"J33","v":""},{"$f":"CHOOSE(I33,\"Libellé du critère quand il sera choisi\",'Guide d''utilisation'!$B$17,'Guide d''utilisation'!$B$18,'Guide d''utilisation'!$B$19,'Guide d''utilisation'!$B$20,,)","v":"Libellé du critère quand il sera choisi"},null,{"$f":"G32+1","v":16},{"$f":"C33","v":"Choix de \rVÉRACITÉ"},{"$f":"IFERROR((VLOOKUP(C33,'Guide d''utilisation'!$M$16:$N$20,2)),\"\")","v":1},{"$f":"IFERROR(CHOOSE(I33,\"\",'Guide d''utilisation'!$E$17,'Guide d''utilisation'!$E$18,'Guide d''utilisation'!$E$19,'Guide d''utilisation'!$E$20,),\"\")","v":""},{"$f":"1/COUNTA($B$32:$B$35)","v":0.25},{"$f":"IFERROR(J33*K33,\"\")","v":""}]
[{"$f":"CONCATENATE(\"cr \",MID(A33,3,4)+1)","v":"cr 17"},"La politique qualité est communiquée, comprise et appliquée au sein de l'organisme","Choix de \nVÉRACITÉ",{"$f":"J34","v":""},{"$f":"CHOOSE(I34,\"Libellé du critère quand il sera choisi\",'Guide d''utilisation'!$B$17,'Guide d''utilisation'!$B$18,'Guide d''utilisation'!$B$19,'Guide d''utilisation'!$B$20,,)","v":"Libellé du critère quand il sera choisi"},null,{"$f":"G33+1","v":17},{"$f":"C34","v":"Choix de \rVÉRACITÉ"},{"$f":"IFERROR((VLOOKUP(C34,'Guide d''utilisation'!$M$16:$N$20,2)),\"\")","v":1},{"$f":"IFERROR(CHOOSE(I34,\"\",'Guide d''utilisation'!$E$17,'Guide d''utilisation'!$E$18,'Guide d''utilisation'!$E$19,'Guide d''utilisation'!$E$20,),\"\")","v":""},{"$f":"1/COUNTA($B$32:$B$35)","v":0.25},{"$f":"IFERROR(J34*K34,\"\")","v":""}]
["cr 18"," La politique est mise à disposition des parties interessées ","Choix de \nVÉRACITÉ","",{"$f":"CHOOSE(I35,\"Libellé du critère quand il sera choisi\",'Guide d''utilisation'!$B$17,'Guide d''utilisation'!$B$18,'Guide d''utilisation'!$B$19,'Guide d''utilisation'!$B$20,,)","v":"Libellé du critère quand il sera choisi"},null,18,"Choix de \rVÉRACITÉ",{"$f":"IFERROR((VLOOKUP(C35,'Guide d''utilisation'!$M$16:$N$20,2)),\"\")","v":1},{"$f":"IFERROR(CHOOSE(I35,\"\",'Guide d''utilisation'!$E$17,'Guide d''utilisation'!$E$18,'Guide d''utilisation'!$E$19,'Guide d''utilisation'!$E$20,),\"\")","v":""},0.25,""]
["5.3","Rôles, responsabilités et habilitations au sein de l'organisme",{"$f":"M36","v":"Insuffisant"},{"$f":"L36","v":0},{"$f":"IFERROR(IF(D36<='Guide d''utilisation'!$G$17,'Guide d''utilisation'!$I$17,IF(D36<='Guide d''utilisation'!$G$18,'Guide d''utilisation'!$I$18,IF(D36<='Guide d''utilisation'!$G$19,'Guide d''utilisation'!$I$19,'Guide d''utilisation'!$I$20))),\"\")","v":"Conformité de niveau 1 : Il est nécessaire de formaliser les activités réalisées."},null,null,"Sous-Article",null,"vérifier si Somme = 1 =>  ",{"$f":"SUM(K37:K40)","v":1},{"$f":"IFERROR(SUM(L37:L40),\"\")","v":0},{"$f":"IFERROR(IF(L36<='Guide d''utilisation'!$G$17,'Guide d''utilisation'!$H$17,IF(L36<='Guide d''utilisation'!$G$18,'Guide d''utilisation'!$H$18,IF(L36<='Guide d''utilisation'!$G$19,'Guide d''utilisation'!$H$19,'Guide d''utilisation'!$H$20))),\"\")","v":"Insuffisant"},{"$f":"1/COUNTA($M$26:$M$37)","v":0.33333333333333331},{"$f":"N36*L36","v":0}]
[{"$f":"CONCATENATE(\"cr \",MID(A35,3,4)+1)","v":"cr 19"},"La direction s'assure que les responsabilités et autorités et habilitations sont définis, assignés et communiquées au sein de l'organisme ( pour le personnel et managers susceptibles d'avoir des liens avec GDA)","Choix de \nVÉRACITÉ",{"$f":"J37","v":""},{"$f":"CHOOSE(I37,\"Libellé du critère quand il sera choisi\",'Guide d''utilisation'!$B$17,'Guide d''utilisation'!$B$18,'Guide d''utilisation'!$B$19,'Guide d''utilisation'!$B$20,,)","v":"Libellé du critère quand il sera choisi"},null,{"$f":"G35+1","v":19},{"$f":"C37","v":"Choix de \rVÉRACITÉ"},{"$f":"IFERROR((VLOOKUP(C37,'Guide d''utilisation'!$M$16:$N$20,2)),\"\")","v":1},{"$f":"IFERROR(CHOOSE(I37,\"\",'Guide d''utilisation'!$E$17,'Guide d''utilisation'!$E$18,'Guide d''utilisation'!$E$19,'Guide d''utilisation'!$E$20,),\"\")","v":""},{"$f":"1/COUNTA($B$37:$B$40)","v":0.25},{"$f":"IFERROR(J37*K37,\"\")","v":""}]
[{"$f":"CONCATENATE(\"cr \",MID(A37,3,4)+1)","v":"cr 20"},"Les responsabilités et autorités associées à la performance du SGDA et son évolution sont attribuées","Choix de \nVÉRACITÉ",{"$f":"J38","v":""},{"$f":"CHOOSE(I38,\"Libellé du critère quand il sera choisi\",'Guide d''utilisation'!$B$17,'Guide d''utilisation'!$B$18,'Guide d''utilisation'!$B$19,'Guide d''utilisation'!$B$20,,)","v":"Libellé du critère quand il sera choisi"},null,{"$f":"G37+1","v":20},{"$f":"C38","v":"Choix de \rVÉRACITÉ"},{"$f":"IFERROR((VLOOKUP(C38,'Guide d''utilisation'!$M$16:$N$20,2)),\"\")","v":1},{"$f":"IFERROR(CHOOSE(I38,\"\",'Guide d''utilisation'!$E$17,'Guide d''utilisation'!$E$18,'Guide d''utilisation'!$E$19,'Guide d''utilisation'!$E$20,),\"\")","v":""},{"$f":"1/COUNTA($B$37:$B$40)","v":0.25},{"$f":"IFERROR(J38*K38,\"\")","v":""}]
[{"$f":"CONCATENATE(\"cr \",MID(A38,3,4)+1)","v":"cr 21"},"Les responsabilités sont affectées aux personnels occuppant les fonctions et niveaux pertinents (cadre supérieur, responsables des documents d'activité par exemple)","Choix de \nVÉRACITÉ",{"$f":"J39","v":""},{"$f":"CHOOSE(I39,\"Libellé du critère quand il sera choisi\",'Guide d''utilisation'!$B$17,'Guide d''utilisation'!$B$18,'Guide d''utilisation'!$B$19,'Guide d''utilisation'!$B$20,,)","v":"Libellé du critère quand il sera choisi"},null,{"$f":"G38+1","v":21},{"$f":"C39","v":"Choix de \rVÉRACITÉ"},{"$f":"IFERROR((VLOOKUP(C39,'Guide d''utilisation'!$M$16:$N$20,2)),\"\")","v":1},{"$f":"IFERROR(CHOOSE(I39,\"\",'Guide d''utilisation'!$E$17,'Guide d''utilisation'!$E$18,'Guide d''utilisation'!$E$19,'Guide d''utilisation'!$E$20,),\"\")","v":""},{"$f":"1/COUNTA($B$37:$B$40)","v":0.25},{"$f":"IFERROR(J39*K39,\"\")","v":""}]
[{"$f":"CONCATENATE(\"cr \",MID(A39,3,4)+1)","v":"cr 22"},"Le leadership est attribué à un représentant spécifique issu de la direction","Choix de \nVÉRACITÉ","",{"$f":"CHOOSE(I40,\"Libellé du critère quand il sera choisi\",'Guide d''utilisation'!$B$17,'Guide d''utilisation'!$B$18,'Guide d''utilisation'!$B$19,'Guide d''utilisation'!$B$20,,)","v":"Libellé du critère quand il sera choisi"},null,22,"Choix de \rVÉRACITÉ",{"$f":"IFERROR((VLOOKUP(C40,'Guide d''utilisation'!$M$16:$N$20,2)),\"\")","v":1},{"$f":"IFERROR(CHOOSE(I40,\"\",'Guide d''utilisation'!$E$17,'Guide d''utilisation'!$E$18,'Guide d''utilisation'!$E$19,'Guide d''utilisation'!$E$20,),\"\")","v":""},0.25,""]
["Art. 6","Planification",{"$f":"P41","v":"Insuffisant"},{"$f":"O41","v":0},{"$f":"IFERROR(IF(D41<='Guide d''utilisation'!$G$17,'Guide d''utilisation'!$I$17,IF(D41<='Guide d''utilisation'!$G$18,'Guide d''utilisation'!$I$18,IF(D41<='Guide d''utilisation'!$G$19,'Guide d''utilisation'!$I$19,'Guide d''utilisation'!$I$20))),\"\")","v":"Conformité de niveau 1 : Il est nécessaire de formaliser les activités réalisées."},null,null,"Article",null,null,null,null,"vérifier si Somme = 1 =>  ",{"$f":"SUM(N42:N54)","v":1},{"$f":"IFERROR(SUM(O42:O54),\"\")","v":0},{"$f":"IFERROR(IF(O41<='Guide d''utilisation'!$G$17,'Guide d''utilisation'!$H$17,IF(O41<='Guide d''utilisation'!$G$18,'Guide d''utilisation'!$H$18,IF(O41<='Guide d''utilisation'!$G$19,'Guide d''utilisation'!$H$19,'Guide d''utilisation'!$H$20))),\"\")","v":"Insuffisant"},{"$f":"1/7","v":0.14285714285714285},{"$f":"O41*Q41","v":0}]
["6.1","Actions à mener pour prendre en compte les risques et opportunités",{"$f":"M42","v":"Insuffisant"},{"$f":"L42","v":0},{"$f":"IFERROR(IF(D42<='Guide d''utilisation'!$G$17,'Guide d''utilisation'!$I$17,IF(D42<='Guide d''utilisation'!$G$18,'Guide d''utilisation'!$I$18,IF(D42<='Guide d''utilisation'!$G$19,'Guide d''utilisation'!$I$19,'Guide d''utilisation'!$I$20))),\"\")","v":"Conformité de niveau 1 : Il est nécessaire de formaliser les activités réalisées."},null,null,"Sous-Article",null,"vérifier si Somme = 1 =>  ",{"$f":"SUM(K43:K46)","v":1},{"$f":"IFERROR(SUM(L43:L46),\"\")","v":0},{"$f":"IFERROR(IF(L42<='Guide d''utilisation'!$G$17,'Guide d''utilisation'!$H$17,IF(L42<='Guide d''utilisation'!$G$18,'Guide d''utilisation'!$H$18,IF(L42<='Guide d''utilisation'!$G$19,'Guide d''utilisation'!$H$19,'Guide d''utilisation'!$H$20))),\"\")","v":"Insuffisant"},{"$f":"1/COUNTA($M$42:$M$54)","v":0.5},{"$f":"N42*L42","v":0}]
[{"$f":"CONCATENATE(\"cr \",MID(A40,3,4)+1)","v":"cr 23"},"Les risques et opportunités sont déterminés pour améliorer la performance du SGDA en lien avec les enjeux à relever et les objectifs à atteindre","Choix de \nVÉRACITÉ",{"$f":"J43","v":""},{"$f":"CHOOSE(I43,\"Libellé du critère quand il sera choisi\",'Guide d''utilisation'!$B$17,'Guide d''utilisation'!$B$18,'Guide d''utilisation'!$B$19,'Guide d''utilisation'!$B$20,,)","v":"Libellé du critère quand il sera choisi"},null,{"$f":"G40+1","v":23},{"$f":"C43","v":"Choix de \rVÉRACITÉ"},{"$f":"IFERROR((VLOOKUP(C43,'Guide d''utilisation'!$M$16:$N$20,2)),\"\")","v":1},{"$f":"IFERROR(CHOOSE(I43,\"\",'Guide d''utilisation'!$E$17,'Guide d''utilisation'!$E$18,'Guide d''utilisation'!$E$19,'Guide d''utilisation'!$E$20,),\"\")","v":""},{"$f":"1/COUNTA($B$43:$B$46)","v":0.25},{"$f":"IFERROR(J43*K43,\"\")","v":""}]
[{"$f":"CONCATENATE(\"cr \",MID(A43,3,4)+1)","v":"cr 24"},"L'orgamisme planifie et met en oeuvre les actions face aux risques et opportunités sélectionnés ","Choix de \nVÉRACITÉ",{"$f":"J44","v":""},{"$f":"CHOOSE(I44,\"Libellé du critère quand il sera choisi\",'Guide d''utilisation'!$B$17,'Guide d''utilisation'!$B$18,'Guide d''utilisation'!$B$19,'Guide d''utilisation'!$B$20,,)","v":"Libellé du critère quand il sera choisi"},null,{"$f":"G43+1","v":24},{"$f":"C44","v":"Choix de \rVÉRACITÉ"},{"$f":"IFERROR((VLOOKUP(C44,'Guide d''utilisation'!$M$16:$N$20,2)),\"\")","v":1},{"$f":"IFERROR(CHOOSE(I44,\"\",'Guide d''utilisation'!$E$17,'Guide d''utilisation'!$E$18,'Guide d''utilisation'!$E$19,'Guide d''utilisation'!$E$20,),\"\")","v":""},{"$f":"1/COUNTA($B$43:$B$46)","v":0.25},{"$f":"IFERROR(J44*K44,\"\")","v":""}]
[{"$f":"CONCATENATE(\"cr \",MID(A44,3,4)+1)","v":"cr 25"},"Les actions sont intégrées et mises en oeuvre dans les procédures SGDA","Choix de \nVÉRACITÉ",{"$f":"J45","v":""},{"$f":"CHOOSE(I45,\"Libellé du critère quand il sera choisi\",'Guide d''utilisation'!$B$17,'Guide d''utilisation'!$B$18,'Guide d''utilisation'!$B$19,'Guide d''utilisation'!$B$20,,)","v":"Libellé du critère quand il sera choisi"},null,{"$f":"G44+1","v":25},{"$f":"C45","v":"Choix de \rVÉRACITÉ"},{"$f":"IFERROR((VLOOKUP(C45,'Guide d''utilisation'!$M$16:$N$20,2)),\"\")","v":1},{"$f":"IFERROR(CHOOSE(I45,\"\",'Guide d''utilisation'!$E$17,'Guide d''utilisation'!$E$18,'Guide d''utilisation'!$E$19,'Guide d''utilisation'!$E$20,),\"\")","v":""},{"$f":"1/COUNTA($B$43:$B$46)","v":0.25},{"$f":"IFERROR(J45*K45,\"\")","v":""}]
[{"$f":"CONCATENATE(\"cr \",MID(A45,3,4)+1)","v":"cr 26"},"L'efficacité de ces actions au sein des processus du SGDA est évaluée","Choix de \nVÉRACITÉ",{"$f":"J46","v":""},{"$f":"CHOOSE(I46,\"Libellé du critère quand il sera choisi\",'Guide d''utilisation'!$B$17,'Guide d''utilisation'!$B$18,'Guide d''utilisation'!$B$19,'Guide d''utilisation'!$B$20,,)","v":"Libellé du critère quand il sera choisi"},null,{"$f":"G45+1","v":26},{"$f":"C46","v":"Choix de \rVÉRACITÉ"},{"$f":"IFERROR((VLOOKUP(C46,'Guide d''utilisation'!$M$16:$N$20,2)),\"\")","v":1},{"$f":"IFERROR(CHOOSE(I46,\"\",'Guide d''utilisation'!$E$17,'Guide d''utilisation'!$E$18,'Guide d''utilisation'!$E$19,'Guide d''utilisation'!$E$20,),\"\")","v":""},{"$f":"1/COUNTA($B$43:$B$46)","v":0.25},{"$f":"IFERROR(J46*K46,\"\")","v":""}]
["6.2","Objectifs à atteindre pour les documents d'activité et moyens à mettre en œuvre",{"$f":"M47","v":"Insuffisant"},{"$f":"L47","v":0},{"$f":"IFERROR(IF(D47<='Guide d''utilisation'!$G$17,'Guide d''utilisation'!$I$17,IF(D47<='Guide d''utilisation'!$G$18,'Guide d''utilisation'!$I$18,IF(D47<='Guide d''utilisation'!$G$19,'Guide d''utilisation'!$I$19,'Guide d''utilisation'!$I$20))),\"\")","v":"Conformité de niveau 1 : Il est nécessaire de formaliser les activités réalisées."},null,null,"Sous-Article",null,"vérifier si Somme = 1 =>  ",{"$f":"SUM(K48:K54)","v":0.99999999999999978},{"$f":"IFERROR(SUM(L48:L54),\"\")","v":0},{"$f":"IFERROR(IF(L47<='Guide d''utilisation'!$G$17,'Guide d''utilisation'!$H$17,IF(L47<='Guide d''utilisation'!$G$18,'Guide d''utilisation'!$H$18,IF(L47<='Guide d''utilisation'!$G$19,'Guide d''utilisation'!$H$19,'Guide d''utilisation'!$H$20))),\"\")","v":"Insuffisant"},{"$f":"1/COUNTA($M$42:$M$54)","v":0.5},{"$f":"N47*L47","v":0}]
[{"$f":"CONCATENATE(\"cr \",MID(A46,3,4)+1)","v":"cr 27"},"La direction s'assure que les objectifs à atteindre pour les documents d'activité sont établis et communiqués aux personnes occupant des fonctions et niveaux pertinents au sein de l'organisme","Choix de \nVÉRACITÉ",{"$f":"J48","v":""},{"$f":"CHOOSE(I48,\"Libellé du critère quand il sera choisi\",'Guide d''utilisation'!$B$17,'Guide d''utilisation'!$B$18,'Guide d''utilisation'!$B$19,'Guide d''utilisation'!$B$20,,)","v":"Libellé du critère quand il sera choisi"},null,{"$f":"G46+1","v":27},{"$f":"C48","v":"Choix de \rVÉRACITÉ"},{"$f":"IFERROR((VLOOKUP(C48,'Guide d''utilisation'!$M$16:$N$20,2)),\"\")","v":1},{"$f":"IFERROR(CHOOSE(I48,\"\",'Guide d''utilisation'!$E$17,'Guide d''utilisation'!$E$18,'Guide d''utilisation'!$E$19,'Guide d''utilisation'!$E$20,),\"\")","v":""},{"$f":"1/COUNTA($B$48:$B$54)","v":0.14285714285714285},{"$f":"IFERROR(J48*K48,\"\")","v":""}]
[{"$f":"CONCATENATE(\"cr \",MID(A48,3,4)+1)","v":"cr 28"},"Les objectifs sont mesurables et cohérents avec la politique relative aux documents","Choix de \nVÉRACITÉ",{"$f":"J49","v":""},{"$f":"CHOOSE(I49,\"Libellé du critère quand il sera choisi\",'Guide d''utilisation'!$B$17,'Guide d''utilisation'!$B$18,'Guide d''utilisation'!$B$19,'Guide d''utilisation'!$B$20,,)","v":"Libellé du critère quand il sera choisi"},null,{"$f":"G48+1","v":28},{"$f":"C49","v":"Choix de \rVÉRACITÉ"},{"$f":"IFERROR((VLOOKUP(C49,'Guide d''utilisation'!$M$16:$N$20,2)),\"\")","v":1},{"$f":"IFERROR(CHOOSE(I49,\"\",'Guide d''utilisation'!$E$17,'Guide d''utilisation'!$E$18,'Guide d''utilisation'!$E$19,'Guide d''utilisation'!$E$20,),\"\")","v":""},{"$f":"1/COUNTA($B$48:$B$54)","v":0.14285714285714285},{"$f":"IFERROR(J49*K49,\"\")","v":""}]
[{"$f":"CONCATENATE(\"cr \",MID(A49,3,4)+1)","v":"cr 29"},"Les objectifs sont surveillés, tenus à jour et communiqués","Choix de \nVÉRACITÉ",{"$f":"J50","v":""},{"$f":"CHOOSE(I50,\"Libellé du critère quand il sera choisi\",'Guide d''utilisation'!$B$17,'Guide d''utilisation'!$B$18,'Guide d''utilisation'!$B$19,'Guide d''utilisation'!$B$20,,)","v":"Libellé du critère quand il sera choisi"},null,{"$f":"G49+1","v":29},{"$f":"C50","v":"Choix de \rVÉRACITÉ"},{"$f":"IFERROR((VLOOKUP(C50,'Guide d''utilisation'!$M$16:$N$20,2)),\"\")","v":1},{"$f":"IFERROR(CHOOSE(I50,\"\",'Guide d''utilisation'!$E$17,'Guide d''utilisation'!$E$18,'Guide d''utilisation'!$E$19,'Guide d''utilisation'!$E$20,),\"\")","v":""},{"$f":"1/COUNTA($B$48:$B$54)","v":0.14285714285714285},{"$f":"IFERROR(J50*K50,\"\")","v":""}]
[{"$f":"CONCATENATE(\"cr \",MID(A50,3,4)+1)","v":"cr 30"},"Les objectifs découlent d'une analyse des activités de l'organisme","Choix de \nVÉRACITÉ",{"$f":"J51","v":""},{"$f":"CHOOSE(I51,\"Libellé du critère quand il sera choisi\",'Guide d''utilisation'!$B$17,'Guide d''utilisation'!$B$18,'Guide d''utilisation'!$B$19,'Guide d''utilisation'!$B$20,,)","v":"Libellé du critère quand il sera choisi"},null,{"$f":"G50+1","v":30},{"$f":"C51","v":"Choix de \rVÉRACITÉ"},{"$f":"IFERROR((VLOOKUP(C51,'Guide d''utilisation'!$M$16:$N$20,2)),\"\")","v":1},{"$f":"IFERROR(CHOOSE(I51,\"\",'Guide d''utilisation'!$E$17,'Guide d''utilisation'!$E$18,'Guide d''utilisation'!$E$19,'Guide d''utilisation'!$E$20,),\"\")","v":""},{"$f":"1/COUNTA($B$48:$B$54)","v":0.14285714285714285},{"$f":"IFERROR(J51*K51,\"\")","v":""}]
[{"$f":"CONCATENATE(\"cr \",MID(A51,3,4)+1)","v":"cr 31"},"Les objectifs définissent le périmètre d'une application optimale pour la création de documents d'activité","Choix de \nVÉRACITÉ",{"$f":"J52","v":""},{"$f":"CHOOSE(I52,\"Libellé du critère quand il sera choisi\",'Guide d''utilisation'!$B$17,'Guide d''utilisation'!$B$18,'Guide d''utilisation'!$B$19,'Guide d''utilisation'!$B$20,,)","v":"Libellé du critère quand il sera choisi"},null,{"$f":"G51+1","v":31},{"$f":"C52","v":"Choix de \rVÉRACITÉ"},{"$f":"IFERROR((VLOOKUP(C52,'Guide d''utilisation'!$M$16:$N$20,2)),\"\")","v":1},{"$f":"IFERROR(CHOOSE(I52,\"\",'Guide d''utilisation'!$E$17,'Guide d''utilisation'!$E$18,'Guide d''utilisation'!$E$19,'Guide d''utilisation'!$E$20,),\"\")","v":""},{"$f":"1/COUNTA($B$48:$B$54)","v":0.14285714285714285},{"$f":"IFERROR(J52*K52,\"\")","v":""}]
["cr 32","L'organisme conserve des informations documentées sur les cibles","Choix de \nVÉRACITÉ","",{"$f":"CHOOSE(I53,\"Libellé du critère quand il sera choisi\",'Guide d''utilisation'!$B$17,'Guide d''utilisation'!$B$18,'Guide d''utilisation'!$B$19,'Guide d''utilisation'!$B$20,,)","v":"Libellé du critère quand il sera choisi"},null,32,"Choix de \rVÉRACITÉ",{"$f":"IFERROR((VLOOKUP(C53,'Guide d''utilisation'!$M$16:$N$20,2)),\"\")","v":1},{"$f":"IFERROR(CHOOSE(I53,\"\",'Guide d''utilisation'!$E$17,'Guide d''utilisation'!$E$18,'Guide d''utilisation'!$E$19,'Guide d''utilisation'!$E$20,),\"\")","v":""},0.14285714285714285,""]
["cr 33","Pour atteindre les objectifs, l'organisme détermine le responsable, les actions, les ressources, la date de fin de réalisation et les modalités d'évaluation des résultats","Choix de \nVÉRACITÉ","",{"$f":"CHOOSE(I54,\"Libellé du critère quand il sera choisi\",'Guide d''utilisation'!$B$17,'Guide d''utilisation'!$B$18,'Guide d''utilisation'!$B$19,'Guide d''utilisation'!$B$20,,)","v":"Libellé du critère quand il sera choisi"},null,33,"Choix de \rVÉRACITÉ",{"$f":"IFERROR((VLOOKUP(C54,'Guide d''utilisation'!$M$16:$N$20,2)),\"\")","v":1},{"$f":"IFERROR(CHOOSE(I54,\"\",'Guide d''utilisation'!$E$17,'Guide d''utilisation'!$E$18,'Guide d''utilisation'!$E$19,'Guide d''utilisation'!$E$20,),\"\")","v":""},0.14285714285714285,""]
["Art. 7","Support",{"$f":"P55","v":"Insuffisant"},{"$f":"O55","v":0},{"$f":"IFERROR(IF(D55<='Guide d''utilisation'!$G$17,'Guide d''utilisation'!$I$17,IF(D55<='Guide d''utilisation'!$G$18,'Guide d''utilisation'!$I$18,IF(D55<='Guide d''utilisation'!$G$19,'Guide d''utilisation'!$I$19,'Guide d''utilisation'!$I$20))),\"\")","v":"Conformité de niveau 1 : Il est nécessaire de formaliser les activités réalisées."},null,null,"Article",null,null,null,null,"vérifier si Somme = 1 =>  ",{"$f":"SUM(N56:N84)","v":1},{"$f":"IFERROR(SUM(O56:O84),\"\")","v":0},{"$f":"IFERROR(IF(O55<='Guide d''utilisation'!$G$17,'Guide d''utilisation'!$H$17,IF(O55<='Guide d''utilisation'!$G$18,'Guide d''utilisation'!$H$18,IF(O55<='Guide d''utilisation'!$G$19,'Guide d''utilisation'!$H$19,'Guide d''utilisation'!$H$20))),\"\")","v":"Insuffisant"},{"$f":"1/7","v":0.14285714285714285},{"$f":"O55*Q55","v":0}]
["7.1","Ressources",{"$f":"M56","v":"Insuffisant"},{"$f":"L56","v":0},{"$f":"IFERROR(IF(D56<='Guide d''utilisation'!$G$17,'Guide d''utilisation'!$I$17,IF(D56<='Guide d''utilisation'!$G$18,'Guide d''utilisation'!$I$18,IF(D56<='Guide d''utilisation'!$G$19,'Guide d''utilisation'!$I$19,'Guide d''utilisation'!$I$20))),\"\")","v":"Conformité de niveau 1 : Il est nécessaire de formaliser les activités réalisées."},null,null,"Sous-Article",null,"vérifier si Somme = 1 =>  ",{"$f":"SUM(K57:K60)","v":1},{"$f":"IFERROR(SUM(L57:L60),\"\")","v":0},{"$f":"IFERROR(IF(L56<='Guide d''utilisation'!$G$17,'Guide d''utilisation'!$H$17,IF(L56<='Guide d''utilisation'!$G$18,'Guide d''utilisation'!$H$18,IF(L56<='Guide d''utilisation'!$G$19,'Guide d''utilisation'!$H$19,'Guide d''utilisation'!$H$20))),\"\")","v":"Insuffisant"},{"$f":"1/COUNTA($M$56:$M$84)","v":0.2},{"$f":"N56*L56","v":0}]
[{"$f":"CONCATENATE(\"cr \",MID(A54,3,4)+1)","v":"cr 34"},"La direction alloue et maintient les ressources nécessaires au SGDA","Choix de \nVÉRACITÉ",{"$f":"J57","v":""},{"$f":"CHOOSE(I57,\"Libellé du critère quand il sera choisi\",'Guide d''utilisation'!$B$17,'Guide d''utilisation'!$B$18,'Guide d''utilisation'!$B$19,'Guide d''utilisation'!$B$20,,)","v":"Libellé du critère quand il sera choisi"},null,{"$f":"G54+1","v":34},{"$f":"C57","v":"Choix de \rVÉRACITÉ"},{"$f":"IFERROR((VLOOKUP(C57,'Guide d''utilisation'!$M$16:$N$20,2)),\"\")","v":1},{"$f":"IFERROR(CHOOSE(I57,\"\",'Guide d''utilisation'!$E$17,'Guide d''utilisation'!$E$18,'Guide d''utilisation'!$E$19,'Guide d''utilisation'!$E$20,),\"\")","v":""},{"$f":"1/COUNTA($B$57:$B$60)","v":0.25},{"$f":"IFERROR(J57*K57,\"\")","v":""}]
[{"$f":"CONCATENATE(\"cr \",MID(A57,3,4)+1)","v":"cr 35"},"La direction attribue les responsabilités aux personnes ayant les compétences nécessaires ","Choix de \nVÉRACITÉ","",{"$f":"CHOOSE(I58,\"Libellé du critère quand il sera choisi\",'Guide d''utilisation'!$B$17,'Guide d''utilisation'!$B$18,'Guide d''utilisation'!$B$19,'Guide d''utilisation'!$B$20,,)","v":"Libellé du critère quand il sera choisi"},null,{"$f":"G57+1","v":35},"Choix de \rVÉRACITÉ",{"$f":"IFERROR((VLOOKUP(C58,'Guide d''utilisation'!$M$16:$N$20,2)),\"\")","v":1},{"$f":"IFERROR(CHOOSE(I58,\"\",'Guide d''utilisation'!$E$17,'Guide d''utilisation'!$E$18,'Guide d''utilisation'!$E$19,'Guide d''utilisation'!$E$20,),\"\")","v":""},{"$f":"1/COUNTA($B$57:$B$60)","v":0.25},""]
[{"$f":"CONCATENATE(\"cr \",MID(A58,3,4)+1)","v":"cr 36"},"La direction revoie périodiquement les compétences et la formation des personnels responsables au sein du SGDA","Choix de \nVÉRACITÉ","",{"$f":"CHOOSE(I59,\"Libellé du critère quand il sera choisi\",'Guide d''utilisation'!$B$17,'Guide d''utilisation'!$B$18,'Guide d''utilisation'!$B$19,'Guide d''utilisation'!$B$20,,)","v":"Libellé du critère quand il sera choisi"},null,{"$f":"G58+1","v":36},"Choix de \rVÉRACITÉ",{"$f":"IFERROR((VLOOKUP(C59,'Guide d''utilisation'!$M$16:$N$20,2)),\"\")","v":1},{"$f":"IFERROR(CHOOSE(I59,\"\",'Guide d''utilisation'!$E$17,'Guide d''utilisation'!$E$18,'Guide d''utilisation'!$E$19,'Guide d''utilisation'!$E$20,),\"\")","v":""},{"$f":"1/COUNTA($B$57:$B$60)","v":0.25},""]
["cr 37","La direction assure la maintenance et la durabilité des ressources et de l'infrastructure technique","Choix de \nVÉRACITÉ","",{"$f":"CHOOSE(I60,\"Libellé du critère quand il sera choisi\",'Guide d''utilisation'!$B$17,'Guide d''utilisation'!$B$18,'Guide d''utilisation'!$B$19,'Guide d''utilisation'!$B$20,,)","v":"Libellé du critère quand il sera choisi"},null,37,"Choix de \rVÉRACITÉ",{"$f":"IFERROR((VLOOKUP(C60,'Guide d''utilisation'!$M$16:$N$20,2)),\"\")","v":1},{"$f":"IFERROR(CHOOSE(I60,\"\",'Guide d''utilisation'!$E$17,'Guide d''utilisation'!$E$18,'Guide d''utilisation'!$E$19,'Guide d''utilisation'!$E$20,),\"\")","v":""},{"$f":"1/COUNTA($B$57:$B$60)","v":0.25},""]
["7.2","Compétences",{"$f":"M61","v":"Insuffisant"},{"$f":"L61","v":0},{"$f":"IFERROR(IF(D61<='Guide d''utilisation'!$G$17,'Guide d''utilisation'!$I$17,IF(D61<='Guide d''utilisation'!$G$18,'Guide d''utilisation'!$I$18,IF(D61<='Guide d''utilisation'!$G$19,'Guide d''utilisation'!$I$19,'Guide d''utilisation'!$I$20))),\"\")","v":"Conformité de niveau 1 : Il est nécessaire de formaliser les activités réalisées."},null,null,"Sous-Article",null,"vérifier si Somme = 1 =>  ",{"$f":"SUM(K62:K65)","v":1},{"$f":"IFERROR(SUM(L62:L65),\"\")","v":0},{"$f":"IFERROR(IF(L61<='Guide d''utilisation'!$G$17,'Guide d''utilisation'!$H$17,IF(L61<='Guide d''utilisation'!$G$18,'Guide d''utilisation'!$H$18,IF(L61<='Guide d''utilisation'!$G$19,'Guide d''utilisation'!$H$19,'Guide d''utilisation'!$H$20))),\"\")","v":"Insuffisant"},{"$f":"1/COUNTA($M$56:$M$84)","v":0.2},{"$f":"N61*L61","v":0}]
[{"$f":"CONCATENATE(\"cr \",MID(A60,3,4)+1)","v":"cr 38"},"Les compétences nécessaires des personnes dont le travail a une incidence sur les processus liés aux documents d'activité et les systèmes documentaires sont déterminées","Choix de \nVÉRACITÉ",{"$f":"J62","v":""},{"$f":"CHOOSE(I62,\"Libellé du critère quand il sera choisi\",'Guide d''utilisation'!$B$17,'Guide d''utilisation'!$B$18,'Guide d''utilisation'!$B$19,'Guide d''utilisation'!$B$20,,)","v":"Libellé du critère quand il sera choisi"},null,{"$f":"G60+1","v":38},{"$f":"C62","v":"Choix de \rVÉRACITÉ"},{"$f":"IFERROR((VLOOKUP(C62,'Guide d''utilisation'!$M$16:$N$20,2)),\"\")","v":1},{"$f":"IFERROR(CHOOSE(I62,\"\",'Guide d''utilisation'!$E$17,'Guide d''utilisation'!$E$18,'Guide d''utilisation'!$E$19,'Guide d''utilisation'!$E$20,),\"\")","v":""},{"$f":"1/COUNTA($B$62:$B$65)","v":0.25},{"$f":"IFERROR(J62*K62,\"\")","v":""}]
[{"$f":"CONCATENATE(\"cr \",MID(A62,3,4)+1)","v":"cr 39"},"Les compétences du personnel sont évaluées sur la base d'une formation ou d'une expérience appropriée","Choix de \nVÉRACITÉ",{"$f":"J63","v":""},{"$f":"CHOOSE(I63,\"Libellé du critère quand il sera choisi\",'Guide d''utilisation'!$B$17,'Guide d''utilisation'!$B$18,'Guide d''utilisation'!$B$19,'Guide d''utilisation'!$B$20,,)","v":"Libellé du critère quand il sera choisi"},null,{"$f":"G62+1","v":39},{"$f":"C63","v":"Choix de \rVÉRACITÉ"},{"$f":"IFERROR((VLOOKUP(C63,'Guide d''utilisation'!$M$16:$N$20,2)),\"\")","v":1},{"$f":"IFERROR(CHOOSE(I63,\"\",'Guide d''utilisation'!$E$17,'Guide d''utilisation'!$E$18,'Guide d''utilisation'!$E$19,'Guide d''utilisation'!$E$20,),\"\")","v":""},{"$f":"1/COUNTA($B$62:$B$65)","v":0.25},{"$f":"IFERROR(J63*K63,\"\")","v":""}]
[{"$f":"CONCATENATE(\"cr \",MID(A63,3,4)+1)","v":"cr 40"},"L'organisme met en place et évalue l'efficacité des actions pour acquérir ou renforcer les compétences nécessaires au bon fonctionnement du SGDA","Choix de \nVÉRACITÉ",{"$f":"J64","v":""},{"$f":"CHOOSE(I64,\"Libellé du critère quand il sera choisi\",'Guide d''utilisation'!$B$17,'Guide d''utilisation'!$B$18,'Guide d''utilisation'!$B$19,'Guide d''utilisation'!$B$20,,)","v":"Libellé du critère quand il sera choisi"},null,{"$f":"G63+1","v":40},{"$f":"C64","v":"Choix de \rVÉRACITÉ"},{"$f":"IFERROR((VLOOKUP(C64,'Guide d''utilisation'!$M$16:$N$20,2)),\"\")","v":1},{"$f":"IFERROR(CHOOSE(I64,\"\",'Guide d''utilisation'!$E$17,'Guide d''utilisation'!$E$18,'Guide d''utilisation'!$E$19,'Guide d''utilisation'!$E$20,),\"\")","v":""},{"$f":"1/COUNTA($B$62:$B$65)","v":0.25},{"$f":"IFERROR(J64*K64,\"\")","v":""}]
[{"$f":"CONCATENATE(\"cr \",MID(A64,3,4)+1)","v":"cr 41"},"Les informations documentées sur les compétences du personnel sont conservées","Choix de \nVÉRACITÉ",{"$f":"J65","v":""},{"$f":"CHOOSE(I65,\"Libellé du critère quand il sera choisi\",'Guide d''utilisation'!$B$17,'Guide d''utilisation'!$B$18,'Guide d''utilisation'!$B$19,'Guide d''utilisation'!$B$20,,)","v":"Libellé du critère quand il sera choisi"},null,{"$f":"G64+1","v":41},{"$f":"C65","v":"Choix de \rVÉRACITÉ"},{"$f":"IFERROR((VLOOKUP(C65,'Guide d''utilisation'!$M$16:$N$20,2)),\"\")","v":1},{"$f":"IFERROR(CHOOSE(I65,\"\",'Guide d''utilisation'!$E$17,'Guide d''utilisation'!$E$18,'Guide d''utilisation'!$E$19,'Guide d''utilisation'!$E$20,),\"\")","v":""},{"$f":"1/COUNTA($B$62:$B$65)","v":0.25},{"$f":"IFERROR(J65*K65,\"\")","v":""}]
["7.3","Sensibilisation et formation",{"$f":"M66","v":"Insuffisant"},{"$f":"L66","v":0},{"$f":"IFERROR(IF(D66<='Guide d''utilisation'!$G$17,'Guide d''utilisation'!$I$17,IF(D66<='Guide d''utilisation'!$G$18,'Guide d''utilisation'!$I$18,IF(D66<='Guide d''utilisation'!$G$19,'Guide d''utilisation'!$I$19,'Guide d''utilisation'!$I$20))),\"\")","v":"Conformité de niveau 1 : Il est nécessaire de formaliser les activités réalisées."},null,null,"Sous-Article",null,"vérifier si Somme = 1 =>  ",{"$f":"SUM(K67:K72)","v":0.99999999999999989},{"$f":"IFERROR(SUM(L67:L72),\"\")","v":0},{"$f":"IFERROR(IF(L66<='Guide d''utilisation'!$G$17,'Guide d''utilisation'!$H$17,IF(L66<='Guide d''utilisation'!$G$18,'Guide d''utilisation'!$H$18,IF(L66<='Guide d''utilisation'!$G$19,'Guide d''utilisation'!$H$19,'Guide d''utilisation'!$H$20))),\"\")","v":"Insuffisant"},{"$f":"1/COUNTA($M$56:$M$84)","v":0.2},{"$f":"N66*L66","v":0}]
[{"$f":"CONCATENATE(\"cr \",MID(A65,3,4)+1)","v":"cr 42"},"L'organisme s'assure que le personnel est conscient de l'importance de son activité, de sa contribution individuelle à la réalisation des objectifsdu SGDA et dans la satisfaction des exigences du SGDA","Choix de \nVÉRACITÉ",{"$f":"J67","v":""},{"$f":"CHOOSE(I67,\"Libellé du critère quand il sera choisi\",'Guide d''utilisation'!$B$17,'Guide d''utilisation'!$B$18,'Guide d''utilisation'!$B$19,'Guide d''utilisation'!$B$20,,)","v":"Libellé du critère quand il sera choisi"},null,{"$f":"G65+1","v":42},{"$f":"C67","v":"Choix de \rVÉRACITÉ"},{"$f":"IFERROR((VLOOKUP(C67,'Guide d''utilisation'!$M$16:$N$20,2)),\"\")","v":1},{"$f":"IFERROR(CHOOSE(I67,\"\",'Guide d''utilisation'!$E$17,'Guide d''utilisation'!$E$18,'Guide d''utilisation'!$E$19,'Guide d''utilisation'!$E$20,),\"\")","v":""},{"$f":"1/COUNTA($B$67:$B$72)","v":0.16666666666666666},{"$f":"IFERROR(J67*K67,\"\")","v":""}]
[{"$f":"CONCATENATE(\"cr \",MID(A67,3,4)+1)","v":"cr 43"},"L'organisme s'assure que le personnel est sensibilisé à la politique, aux procédures du SGDA et aux exigences du système de management ","Choix de \nVÉRACITÉ",{"$f":"J68","v":""},{"$f":"CHOOSE(I68,\"Libellé du critère quand il sera choisi\",'Guide d''utilisation'!$B$17,'Guide d''utilisation'!$B$18,'Guide d''utilisation'!$B$19,'Guide d''utilisation'!$B$20,,)","v":"Libellé du critère quand il sera choisi"},null,{"$f":"G67+1","v":43},{"$f":"C68","v":"Choix de \rVÉRACITÉ"},{"$f":"IFERROR((VLOOKUP(C68,'Guide d''utilisation'!$M$16:$N$20,2)),\"\")","v":1},{"$f":"IFERROR(CHOOSE(I68,\"\",'Guide d''utilisation'!$E$17,'Guide d''utilisation'!$E$18,'Guide d''utilisation'!$E$19,'Guide d''utilisation'!$E$20,),\"\")","v":""},{"$f":"1/COUNTA($B$67:$B$72)","v":0.16666666666666666},{"$f":"IFERROR(J68*K68,\"\")","v":""}]
[{"$f":"CONCATENATE(\"cr \",MID(A68,3,4)+1)","v":"cr 44"},"L'organisme s'assure que son personnel est conscient des points critiques, des impacts du SGDA sur le travail des employés et aussi de ses avantages sur leurs performances individuelles","Choix de \nVÉRACITÉ",{"$f":"J69","v":""},{"$f":"CHOOSE(I69,\"Libellé du critère quand il sera choisi\",'Guide d''utilisation'!$B$17,'Guide d''utilisation'!$B$18,'Guide d''utilisation'!$B$19,'Guide d''utilisation'!$B$20,,)","v":"Libellé du critère quand il sera choisi"},null,{"$f":"G68+1","v":44},{"$f":"C69","v":"Choix de \rVÉRACITÉ"},{"$f":"IFERROR((VLOOKUP(C69,'Guide d''utilisation'!$M$16:$N$20,2)),\"\")","v":1},{"$f":"IFERROR(CHOOSE(I69,\"\",'Guide d''utilisation'!$E$17,'Guide d''utilisation'!$E$18,'Guide d''utilisation'!$E$19,'Guide d''utilisation'!$E$20,),\"\")","v":""},{"$f":"1/COUNTA($B$67:$B$72)","v":0.16666666666666666},{"$f":"IFERROR(J69*K69,\"\")","v":""}]
["cr 45","Le personnel est conscient des conséquences de tout écart par rapport aux procédures spécifiées","Choix de \nVÉRACITÉ","",{"$f":"CHOOSE(I70,\"Libellé du critère quand il sera choisi\",'Guide d''utilisation'!$B$17,'Guide d''utilisation'!$B$18,'Guide d''utilisation'!$B$19,'Guide d''utilisation'!$B$20,,)","v":"Libellé du critère quand il sera choisi"},null,45,"Choix de \rVÉRACITÉ",{"$f":"IFERROR((VLOOKUP(C70,'Guide d''utilisation'!$M$16:$N$20,2)),\"\")","v":1},{"$f":"IFERROR(CHOOSE(I70,\"\",'Guide d''utilisation'!$E$17,'Guide d''utilisation'!$E$18,'Guide d''utilisation'!$E$19,'Guide d''utilisation'!$E$20,),\"\")","v":""},0.16666666666666666,""]
["cr 46","L'organisme évalue, idenditifie et intègre les compétences de son personnel afin d'établir des programmes de formation sur la création, le contrôle de SGDA, les exigences et les pratiques de gestion des documents d'activité","Choix de \nVÉRACITÉ","",{"$f":"CHOOSE(I71,\"Libellé du critère quand il sera choisi\",'Guide d''utilisation'!$B$17,'Guide d''utilisation'!$B$18,'Guide d''utilisation'!$B$19,'Guide d''utilisation'!$B$20,,)","v":"Libellé du critère quand il sera choisi"},null,46,"Choix de \rVÉRACITÉ",{"$f":"IFERROR((VLOOKUP(C71,'Guide d''utilisation'!$M$16:$N$20,2)),\"\")","v":1},{"$f":"IFERROR(CHOOSE(I71,\"\",'Guide d''utilisation'!$E$17,'Guide d''utilisation'!$E$18,'Guide d''utilisation'!$E$19,'Guide d''utilisation'!$E$20,),\"\")","v":""},0.16666666666666666,""]
["cr 47","Le personnel est sensibilisé aux effets bénéfiques d'une amélioration des performances et aux répercussions d'un non respect des exigences du SGDA","Choix de \nVÉRACITÉ","",{"$f":"CHOOSE(I72,\"Libellé du critère quand il sera choisi\",'Guide d''utilisation'!$B$17,'Guide d''utilisation'!$B$18,'Guide d''utilisation'!$B$19,'Guide d''utilisation'!$B$20,,)","v":"Libellé du critère quand il sera choisi"},null,47,"Choix de \rVÉRACITÉ",{"$f":"IFERROR((VLOOKUP(C72,'Guide d''utilisation'!$M$16:$N$20,2)),\"\")","v":1},{"$f":"IFERROR(CHOOSE(I72,\"\",'Guide d''utilisation'!$E$17,'Guide d''utilisation'!$E$18,'Guide d''utilisation'!$E$19,'Guide d''utilisation'!$E$20,),\"\")","v":""},0.16666666666666666,""]
["7.4","Communication",{"$f":"M73","v":"Insuffisant"},{"$f":"L73","v":0},{"$f":"IFERROR(IF(D73<='Guide d''utilisation'!$G$17,'Guide d''utilisation'!$I$17,IF(D73<='Guide d''utilisation'!$G$18,'Guide d''utilisation'!$I$18,IF(D73<='Guide d''utilisation'!$G$19,'Guide d''utilisation'!$I$19,'Guide d''utilisation'!$I$20))),\"\")","v":"Conformité de niveau 1 : Il est nécessaire de formaliser les activités réalisées."},null,null,"Sous-Article",null,"vérifier si Somme = 1 =>  ",{"$f":"SUM(K74:K76)","v":1},{"$f":"IFERROR(SUM(L74:L76),\"\")","v":0},{"$f":"IFERROR(IF(L73<='Guide d''utilisation'!$G$17,'Guide d''utilisation'!$H$17,IF(L73<='Guide d''utilisation'!$G$18,'Guide d''utilisation'!$H$18,IF(L73<='Guide d''utilisation'!$G$19,'Guide d''utilisation'!$H$19,'Guide d''utilisation'!$H$20))),\"\")","v":"Insuffisant"},{"$f":"1/COUNTA($M$56:$M$84)","v":0.2},{"$f":"N73*L73","v":0}]
[{"$f":"CONCATENATE(\"cr \",MID(A72,3,4)+1)","v":"cr 48"},"Des procédures de communication interne sur le SGDA, la politique et les objectifs de l'organisme concernant les documents d'activité sont établies, mises en œuvre, documentées et maintenues","Choix de \nVÉRACITÉ",{"$f":"J74","v":""},{"$f":"CHOOSE(I74,\"Libellé du critère quand il sera choisi\",'Guide d''utilisation'!$B$17,'Guide d''utilisation'!$B$18,'Guide d''utilisation'!$B$19,'Guide d''utilisation'!$B$20,,)","v":"Libellé du critère quand il sera choisi"},null,{"$f":"G72+1","v":48},{"$f":"C74","v":"Choix de \rVÉRACITÉ"},{"$f":"IFERROR((VLOOKUP(C74,'Guide d''utilisation'!$M$16:$N$20,2)),\"\")","v":1},{"$f":"IFERROR(CHOOSE(I74,\"\",'Guide d''utilisation'!$E$17,'Guide d''utilisation'!$E$18,'Guide d''utilisation'!$E$19,'Guide d''utilisation'!$E$20,),\"\")","v":""},{"$f":"1/COUNTA($B$74:$B$76)","v":0.33333333333333331},{"$f":"IFERROR(J74*K74,\"\")","v":""}]
[{"$f":"CONCATENATE(\"cr \",MID(A74,3,4)+1)","v":"cr 49"},"Les autorités d'accés à la documentation de communication interne sont mentionnées","Choix de \nVÉRACITÉ",{"$f":"J75","v":""},{"$f":"CHOOSE(I75,\"Libellé du critère quand il sera choisi\",'Guide d''utilisation'!$B$17,'Guide d''utilisation'!$B$18,'Guide d''utilisation'!$B$19,'Guide d''utilisation'!$B$20,,)","v":"Libellé du critère quand il sera choisi"},null,{"$f":"G74+1","v":49},{"$f":"C75","v":"Choix de \rVÉRACITÉ"},{"$f":"IFERROR((VLOOKUP(C75,'Guide d''utilisation'!$M$16:$N$20,2)),\"\")","v":1},{"$f":"IFERROR(CHOOSE(I75,\"\",'Guide d''utilisation'!$E$17,'Guide d''utilisation'!$E$18,'Guide d''utilisation'!$E$19,'Guide d''utilisation'!$E$20,),\"\")","v":""},{"$f":"1/COUNTA($B$74:$B$76)","v":0.33333333333333331},{"$f":"IFERROR(J75*K75,\"\")","v":""}]
[{"$f":"CONCATENATE(\"cr \",MID(A75,3,4)+1)","v":"cr 50"},"Les modalités de communication externe sont déterminées","Choix de \nVÉRACITÉ",{"$f":"J76","v":""},{"$f":"CHOOSE(I76,\"Libellé du critère quand il sera choisi\",'Guide d''utilisation'!$B$17,'Guide d''utilisation'!$B$18,'Guide d''utilisation'!$B$19,'Guide d''utilisation'!$B$20,,)","v":"Libellé du critère quand il sera choisi"},null,{"$f":"G75+1","v":50},{"$f":"C76","v":"Choix de \rVÉRACITÉ"},{"$f":"IFERROR((VLOOKUP(C76,'Guide d''utilisation'!$M$16:$N$20,2)),\"\")","v":1},{"$f":"IFERROR(CHOOSE(I76,\"\",'Guide d''utilisation'!$E$17,'Guide d''utilisation'!$E$18,'Guide d''utilisation'!$E$19,'Guide d''utilisation'!$E$20,),\"\")","v":""},{"$f":"1/COUNTA($B$74:$B$76)","v":0.33333333333333331},{"$f":"IFERROR(J76*K76,\"\")","v":""}]
["7.5","Documentation",{"$f":"M77","v":"Insuffisant"},{"$f":"L77","v":0},{"$f":"IFERROR(IF(D77<='Guide d''utilisation'!$G$17,'Guide d''utilisation'!$I$17,IF(D77<='Guide d''utilisation'!$G$18,'Guide d''utilisation'!$I$18,IF(D77<='Guide d''utilisation'!$G$19,'Guide d''utilisation'!$I$19,'Guide d''utilisation'!$I$20))),\"\")","v":"Conformité de niveau 1 : Il est nécessaire de formaliser les activités réalisées."},null,null,"Sous-Article",null,"vérifier si Somme = 1 =>  ",{"$f":"SUM(K78:K84)","v":0.99999999999999978},{"$f":"IFERROR(SUM(L78:L84),\"\")","v":0},{"$f":"IFERROR(IF(L77<='Guide d''utilisation'!$G$17,'Guide d''utilisation'!$H$17,IF(L77<='Guide d''utilisation'!$G$18,'Guide d''utilisation'!$H$18,IF(L77<='Guide d''utilisation'!$G$19,'Guide d''utilisation'!$H$19,'Guide d''utilisation'!$H$20))),\"\")","v":"Insuffisant"},{"$f":"1/COUNTA($M$56:$M$84)","v":0.2},{"$f":"N77*L77","v":0}]
[{"$f":"CONCATENATE(\"cr \",MID(A76,3,4)+1)","v":"cr 51"},"La documentation comprend des relevés de décision concernant le domaine d'application, la politique, les objectifs, les cibles, l'interdépendance et les relations entre le SGDA et les autres systèmes de management, les procédures documentées exigées par la norme et celles nécessaires à son efficacité","Choix de \nVÉRACITÉ",{"$f":"J78","v":""},{"$f":"CHOOSE(I78,\"Libellé du critère quand il sera choisi\",'Guide d''utilisation'!$B$17,'Guide d''utilisation'!$B$18,'Guide d''utilisation'!$B$19,'Guide d''utilisation'!$B$20,,)","v":"Libellé du critère quand il sera choisi"},null,{"$f":"G76+1","v":51},{"$f":"C78","v":"Choix de \rVÉRACITÉ"},{"$f":"IFERROR((VLOOKUP(C78,'Guide d''utilisation'!$M$16:$N$20,2)),\"\")","v":1},{"$f":"IFERROR(CHOOSE(I78,\"\",'Guide d''utilisation'!$E$17,'Guide d''utilisation'!$E$18,'Guide d''utilisation'!$E$19,'Guide d''utilisation'!$E$20,),\"\")","v":""},{"$f":"1/COUNTA($B$78:$B$84)","v":0.14285714285714285},{"$f":"IFERROR(J78*K78,\"\")","v":""}]
[{"$f":"CONCATENATE(\"cr \",MID(A78,3,4)+1)","v":"cr 52"},"La documentation est identifiée et décrite de manière compréhensible","Choix de \nVÉRACITÉ","",{"$f":"CHOOSE(I79,\"Libellé du critère quand il sera choisi\",'Guide d''utilisation'!$B$17,'Guide d''utilisation'!$B$18,'Guide d''utilisation'!$B$19,'Guide d''utilisation'!$B$20,,)","v":"Libellé du critère quand il sera choisi"},null,{"$f":"G78+1","v":52},"Choix de \rVÉRACITÉ",{"$f":"IFERROR((VLOOKUP(C79,'Guide d''utilisation'!$M$16:$N$20,2)),\"\")","v":1},{"$f":"IFERROR(CHOOSE(I79,\"\",'Guide d''utilisation'!$E$17,'Guide d''utilisation'!$E$18,'Guide d''utilisation'!$E$19,'Guide d''utilisation'!$E$20,),\"\")","v":""},0.14285714285714285,""]
["cr 53","Le contenu de la documentation est revu , mis à jour et approuvé en termes de pertinence et d'adéquation avant sa diffusion","Choix de \nVÉRACITÉ","",{"$f":"CHOOSE(I80,\"Libellé du critère quand il sera choisi\",'Guide d''utilisation'!$B$17,'Guide d''utilisation'!$B$18,'Guide d''utilisation'!$B$19,'Guide d''utilisation'!$B$20,,)","v":"Libellé du critère quand il sera choisi"},null,53,"Choix de \rVÉRACITÉ",{"$f":"IFERROR((VLOOKUP(C80,'Guide d''utilisation'!$M$16:$N$20,2)),\"\")","v":1},{"$f":"IFERROR(CHOOSE(I80,\"\",'Guide d''utilisation'!$E$17,'Guide d''utilisation'!$E$18,'Guide d''utilisation'!$E$19,'Guide d''utilisation'!$E$20,),\"\")","v":""},0.14285714285714285,""]
["cr 54","La documentation est controlée et les contrôles sont définis dans une procédure documentée","Choix de \nVÉRACITÉ","",{"$f":"CHOOSE(I81,\"Libellé du critère quand il sera choisi\",'Guide d''utilisation'!$B$17,'Guide d''utilisation'!$B$18,'Guide d''utilisation'!$B$19,'Guide d''utilisation'!$B$20,,)","v":"Libellé du critère quand il sera choisi"},null,54,"Choix de \rVÉRACITÉ",{"$f":"IFERROR((VLOOKUP(C81,'Guide d''utilisation'!$M$16:$N$20,2)),\"\")","v":1},{"$f":"IFERROR(CHOOSE(I81,\"\",'Guide d''utilisation'!$E$17,'Guide d''utilisation'!$E$18,'Guide d''utilisation'!$E$19,'Guide d''utilisation'!$E$20,),\"\")","v":""},0.14285714285714285,""]
["cr 55","Les modifications de la documentation sont maitrisées et le statut de révision est identifié (contrôle des versions par exemple)","Choix de \nVÉRACITÉ","",{"$f":"CHOOSE(I82,\"Libellé du critère quand il sera choisi\",'Guide d''utilisation'!$B$17,'Guide d''utilisation'!$B$18,'Guide d''utilisation'!$B$19,'Guide d''utilisation'!$B$20,,)","v":"Libellé du critère quand il sera choisi"},null,55,"Choix de \rVÉRACITÉ",{"$f":"IFERROR((VLOOKUP(C82,'Guide d''utilisation'!$M$16:$N$20,2)),\"\")","v":1},{"$f":"IFERROR(CHOOSE(I82,\"\",'Guide d''utilisation'!$E$17,'Guide d''utilisation'!$E$18,'Guide d''utilisation'!$E$19,'Guide d''utilisation'!$E$20,),\"\")","v":""},0.14285714285714285,""]
["cr 56","La gestion de la documentation est bien maîtrisée en termes d'empêcher toute utilisation fortuite d'une documentation périmée, afin de la classer pour conservation ou élimination","Choix de \nVÉRACITÉ","",{"$f":"CHOOSE(I83,\"Libellé du critère quand il sera choisi\",'Guide d''utilisation'!$B$17,'Guide d''utilisation'!$B$18,'Guide d''utilisation'!$B$19,'Guide d''utilisation'!$B$20,,)","v":"Libellé du critère quand il sera choisi"},null,56,"Choix de \rVÉRACITÉ",{"$f":"IFERROR((VLOOKUP(C83,'Guide d''utilisation'!$M$16:$N$20,2)),\"\")","v":1},{"$f":"IFERROR(CHOOSE(I83,\"\",'Guide d''utilisation'!$E$17,'Guide d''utilisation'!$E$18,'Guide d''utilisation'!$E$19,'Guide d''utilisation'!$E$20,),\"\")","v":""},0.14285714285714285,""]
["cr 57","La documentation extérieure est identifiée et maitrisée","Choix de \nVÉRACITÉ","",{"$f":"CHOOSE(I84,\"Libellé du critère quand il sera choisi\",'Guide d''utilisation'!$B$17,'Guide d''utilisation'!$B$18,'Guide d''utilisation'!$B$19,'Guide d''utilisation'!$B$20,,)","v":"Libellé du critère quand il sera choisi"},null,57,"Choix de \rVÉRACITÉ",{"$f":"IFERROR((VLOOKUP(C84,'Guide d''utilisation'!$M$16:$N$20,2)),\"\")","v":1},{"$f":"IFERROR(CHOOSE(I84,\"\",'Guide d''utilisation'!$E$17,'Guide d''utilisation'!$E$18,'Guide d''utilisation'!$E$19,'Guide d''utilisation'!$E$20,),\"\")","v":""},0.14285714285714285,""]
["Art. 8","Réalisation des activités opérationnelles",{"$f":"P85","v":"Insuffisant"},{"$f":"O85","v":0},{"$f":"IFERROR(IF(D85<='Guide d''utilisation'!$G$17,'Guide d''utilisation'!$I$17,IF(D85<='Guide d''utilisation'!$G$18,'Guide d''utilisation'!$I$18,IF(D85<='Guide d''utilisation'!$G$19,'Guide d''utilisation'!$I$19,'Guide d''utilisation'!$I$20))),\"\")","v":"Conformité de niveau 1 : Il est nécessaire de formaliser les activités réalisées."},null,null,"Article",null,null,null,null,"vérifier si Somme = 1 =>  ",{"$f":"SUM(N86:N102)","v":1},{"$f":"IFERROR(SUM(O86:O102),\"\")","v":0},{"$f":"IFERROR(IF(O85<='Guide d''utilisation'!$G$17,'Guide d''utilisation'!$H$17,IF(O85<='Guide d''utilisation'!$G$18,'Guide d''utilisation'!$H$18,IF(O85<='Guide d''utilisation'!$G$19,'Guide d''utilisation'!$H$19,'Guide d''utilisation'!$H$20))),\"\")","v":"Insuffisant"},{"$f":"1/7","v":0.14285714285714285},{"$f":"O85*Q85","v":0}]
["8.1","Planification et contrôle de la réalisation",{"$f":"M86","v":"Insuffisant"},{"$f":"L86","v":0},{"$f":"IFERROR(IF(D86<='Guide d''utilisation'!$G$17,'Guide d''utilisation'!$I$17,IF(D86<='Guide d''utilisation'!$G$18,'Guide d''utilisation'!$I$18,IF(D86<='Guide d''utilisation'!$G$19,'Guide d''utilisation'!$I$19,'Guide d''utilisation'!$I$20))),\"\")","v":"Conformité de niveau 1 : Il est nécessaire de formaliser les activités réalisées."},null,null,"Sous-Article",null,"vérifier si Somme = 1 =>  ",{"$f":"SUM(K87:K92)","v":0.99999999999999989},{"$f":"IFERROR(SUM(L87:L92),\"\")","v":0},{"$f":"IFERROR(IF(L86<='Guide d''utilisation'!$G$17,'Guide d''utilisation'!$H$17,IF(L86<='Guide d''utilisation'!$G$18,'Guide d''utilisation'!$H$18,IF(L86<='Guide d''utilisation'!$G$19,'Guide d''utilisation'!$H$19,'Guide d''utilisation'!$H$20))),\"\")","v":"Insuffisant"},{"$f":"1/COUNTA($M$86:$M$102)","v":0.33333333333333331},{"$f":"N86*L86","v":0}]
[{"$f":"CONCATENATE(\"cr \",MID(A84,3,4)+1)","v":"cr 58"},"Les processus internes et externes relatifs à la gestion des risques et l'atteinte des objectifs sont détérminés, planifiés, mis en œuvre et contrôlés  ","Choix de \nVÉRACITÉ",{"$f":"J87","v":""},{"$f":"CHOOSE(I87,\"Libellé du critère quand il sera choisi\",'Guide d''utilisation'!$B$17,'Guide d''utilisation'!$B$18,'Guide d''utilisation'!$B$19,'Guide d''utilisation'!$B$20,,)","v":"Libellé du critère quand il sera choisi"},null,{"$f":"G84+1","v":58},{"$f":"C87","v":"Choix de \rVÉRACITÉ"},{"$f":"IFERROR((VLOOKUP(C87,'Guide d''utilisation'!$M$16:$N$20,2)),\"\")","v":1},{"$f":"IFERROR(CHOOSE(I87,\"\",'Guide d''utilisation'!$E$17,'Guide d''utilisation'!$E$18,'Guide d''utilisation'!$E$19,'Guide d''utilisation'!$E$20,),\"\")","v":""},{"$f":"1/COUNTA($B$87:$B$92)","v":0.16666666666666666},{"$f":"IFERROR(J87*K87,\"\")","v":""}]
[{"$f":"CONCATENATE(\"cr \",MID(A87,3,4)+1)","v":"cr 59"},"Les exigences et les critères des processus (gestion des risques et l'atteinte des objectifs) sont déterminés","Choix de \nVÉRACITÉ","",{"$f":"CHOOSE(I88,\"Libellé du critère quand il sera choisi\",'Guide d''utilisation'!$B$17,'Guide d''utilisation'!$B$18,'Guide d''utilisation'!$B$19,'Guide d''utilisation'!$B$20,,)","v":"Libellé du critère quand il sera choisi"},null,{"$f":"G87+1","v":59},"Choix de \rVÉRACITÉ",{"$f":"IFERROR((VLOOKUP(C88,'Guide d''utilisation'!$M$16:$N$20,2)),\"\")","v":1},{"$f":"IFERROR(CHOOSE(I88,\"\",'Guide d''utilisation'!$E$17,'Guide d''utilisation'!$E$18,'Guide d''utilisation'!$E$19,'Guide d''utilisation'!$E$20,),\"\")","v":""},0.16666666666666666,""]
["cr 60","L'organisme assure la maîtrise des processus conformément à ces critères ","Choix de \nVÉRACITÉ","",{"$f":"CHOOSE(I89,\"Libellé du critère quand il sera choisi\",'Guide d''utilisation'!$B$17,'Guide d''utilisation'!$B$18,'Guide d''utilisation'!$B$19,'Guide d''utilisation'!$B$20,,)","v":"Libellé du critère quand il sera choisi"},null,60,"Choix de \rVÉRACITÉ",{"$f":"IFERROR((VLOOKUP(C89,'Guide d''utilisation'!$M$16:$N$20,2)),\"\")","v":1},{"$f":"IFERROR(CHOOSE(I89,\"\",'Guide d''utilisation'!$E$17,'Guide d''utilisation'!$E$18,'Guide d''utilisation'!$E$19,'Guide d''utilisation'!$E$20,),\"\")","v":""},0.16666666666666666,""]
["cr 61","L'organisme conserve les documents nécessaires afin de démontrer que le processus a été mené comme convenu","Choix de \nVÉRACITÉ","",{"$f":"CHOOSE(I90,\"Libellé du critère quand il sera choisi\",'Guide d''utilisation'!$B$17,'Guide d''utilisation'!$B$18,'Guide d''utilisation'!$B$19,'Guide d''utilisation'!$B$20,,)","v":"Libellé du critère quand il sera choisi"},null,61,"Choix de \rVÉRACITÉ",{"$f":"IFERROR((VLOOKUP(C90,'Guide d''utilisation'!$M$16:$N$20,2)),\"\")","v":1},{"$f":"IFERROR(CHOOSE(I90,\"\",'Guide d''utilisation'!$E$17,'Guide d''utilisation'!$E$18,'Guide d''utilisation'!$E$19,'Guide d''utilisation'!$E$20,),\"\")","v":""},0.16666666666666666,""]
["cr 62","Tout changement planifié est contrôlé et tout changement imprévu est passé en revue dans ses conséquences et des actions sont menées pour atténuer les effets néfastes","Choix de \nVÉRACITÉ","",{"$f":"CHOOSE(I91,\"Libellé du critère quand il sera choisi\",'Guide d''utilisation'!$B$17,'Guide d''utilisation'!$B$18,'Guide d''utilisation'!$B$19,'Guide d''utilisation'!$B$20,,)","v":"Libellé du critère quand il sera choisi"},null,62,"Choix de \rVÉRACITÉ",{"$f":"IFERROR((VLOOKUP(C91,'Guide d''utilisation'!$M$16:$N$20,2)),\"\")","v":1},{"$f":"IFERROR(CHOOSE(I91,\"\",'Guide d''utilisation'!$E$17,'Guide d''utilisation'!$E$18,'Guide d''utilisation'!$E$19,'Guide d''utilisation'!$E$20,),\"\")","v":""},0.16666666666666666,""]
[{"$f":"CONCATENATE(\"cr \",MID(A91,3,4)+1)","v":"cr 63"},"Les processus sous-traités ou externalisés sont contrôlés","Choix de \nVÉRACITÉ","",{"$f":"CHOOSE(I92,\"Libellé du critère quand il sera choisi\",'Guide d''utilisation'!$B$17,'Guide d''utilisation'!$B$18,'Guide d''utilisation'!$B$19,'Guide d''utilisation'!$B$20,,)","v":"Libellé du critère quand il sera choisi"},null,{"$f":"G91+1","v":63},"Choix de \rVÉRACITÉ",{"$f":"IFERROR((VLOOKUP(C92,'Guide d''utilisation'!$M$16:$N$20,2)),\"\")","v":1},{"$f":"IFERROR(CHOOSE(I92,\"\",'Guide d''utilisation'!$E$17,'Guide d''utilisation'!$E$18,'Guide d''utilisation'!$E$19,'Guide d''utilisation'!$E$20,),\"\")","v":""},0.16666666666666666,""]
["8.2","Conception des processus liés aux documents d'activité",{"$f":"M93","v":"Insuffisant"},{"$f":"L93","v":0},{"$f":"IFERROR(IF(D93<='Guide d''utilisation'!$G$17,'Guide d''utilisation'!$I$17,IF(D93<='Guide d''utilisation'!$G$18,'Guide d''utilisation'!$I$18,IF(D93<='Guide d''utilisation'!$G$19,'Guide d''utilisation'!$I$19,'Guide d''utilisation'!$I$20))),\"\")","v":"Conformité de niveau 1 : Il est nécessaire de formaliser les activités réalisées."},null,null,"Sous-Article",null,"vérifier si Somme = 1 =>  ",{"$f":"SUM(K94:K98)","v":1},{"$f":"IFERROR(SUM(L94:L98),\"\")","v":0},{"$f":"IFERROR(IF(L93<='Guide d''utilisation'!$G$17,'Guide d''utilisation'!$H$17,IF(L93<='Guide d''utilisation'!$G$18,'Guide d''utilisation'!$H$18,IF(L93<='Guide d''utilisation'!$G$19,'Guide d''utilisation'!$H$19,'Guide d''utilisation'!$H$20))),\"\")","v":"Insuffisant"},{"$f":"1/COUNTA($M$86:$M$102)","v":0.33333333333333331},{"$f":"N93*L93","v":0}]
[{"$f":"CONCATENATE(\"cr \",MID(A92,3,4)+1)","v":"cr 64"},"Les processus métiers sont analysés afin de déterminer les exigences relatives à la création et au contrôle des documents d'activité","Choix de \nVÉRACITÉ",{"$f":"J94","v":""},{"$f":"CHOOSE(I94,\"Libellé du critère quand il sera choisi\",'Guide d''utilisation'!$B$17,'Guide d''utilisation'!$B$18,'Guide d''utilisation'!$B$19,'Guide d''utilisation'!$B$20,,)","v":"Libellé du critère quand il sera choisi"},null,{"$f":"G92+1","v":64},{"$f":"C94","v":"Choix de \rVÉRACITÉ"},{"$f":"IFERROR((VLOOKUP(C94,'Guide d''utilisation'!$M$16:$N$20,2)),\"\")","v":1},{"$f":"IFERROR(CHOOSE(I94,\"\",'Guide d''utilisation'!$E$17,'Guide d''utilisation'!$E$18,'Guide d''utilisation'!$E$19,'Guide d''utilisation'!$E$20,),\"\")","v":""},{"$f":"1/COUNTA($B$94:$B$98)","v":0.2},{"$f":"IFERROR(J94*K94,\"\")","v":""}]
[{"$f":"CONCATENATE(\"cr \",MID(A94,3,4)+1)","v":"cr 65"},"Les risques associés aux défauts de contrôle, à la fiabilité et à l'exploitabilité des documents d'activité en lien avec des processus opérationnels sont évalués","Choix de \nVÉRACITÉ",{"$f":"J95","v":""},{"$f":"CHOOSE(I95,\"Libellé du critère quand il sera choisi\",'Guide d''utilisation'!$B$17,'Guide d''utilisation'!$B$18,'Guide d''utilisation'!$B$19,'Guide d''utilisation'!$B$20,,)","v":"Libellé du critère quand il sera choisi"},null,{"$f":"G94+1","v":65},{"$f":"C95","v":"Choix de \rVÉRACITÉ"},{"$f":"IFERROR((VLOOKUP(C95,'Guide d''utilisation'!$M$16:$N$20,2)),\"\")","v":1},{"$f":"IFERROR(CHOOSE(I95,\"\",'Guide d''utilisation'!$E$17,'Guide d''utilisation'!$E$18,'Guide d''utilisation'!$E$19,'Guide d''utilisation'!$E$20,),\"\")","v":""},{"$f":"1/COUNTA($B$94:$B$98)","v":0.2},""]
["cr 66","Les processus de création des documents d'activité sont spéricifiés en déterminant leurs typologie, contenu, contexte, forme et les technologies pour la création et l'enregistrement des documents d'activité","Choix de \nVÉRACITÉ","",{"$f":"CHOOSE(I96,\"Libellé du critère quand il sera choisi\",'Guide d''utilisation'!$B$17,'Guide d''utilisation'!$B$18,'Guide d''utilisation'!$B$19,'Guide d''utilisation'!$B$20,,)","v":"Libellé du critère quand il sera choisi"},null,66,"Choix de \rVÉRACITÉ",{"$f":"IFERROR((VLOOKUP(C96,'Guide d''utilisation'!$M$16:$N$20,2)),\"\")","v":1},{"$f":"IFERROR(CHOOSE(I96,\"\",'Guide d''utilisation'!$E$17,'Guide d''utilisation'!$E$18,'Guide d''utilisation'!$E$19,'Guide d''utilisation'!$E$20,),\"\")","v":""},{"$f":"1/COUNTA($B$94:$B$98)","v":0.2},""]
["cr 67","Les processus de contrôle des documents d'activité sont spécifiés en déterminant les informations de contrôle et les habilitations à les détruire, en fixant les règles et les conditions d'utilisation qui doivent être respectées par l'administration et la maintenance des systèmes documentaires et en maintenant l'exploitabilité ","Choix de \nVÉRACITÉ",{"$f":"J97","v":""},{"$f":"CHOOSE(I97,\"Libellé du critère quand il sera choisi\",'Guide d''utilisation'!$B$17,'Guide d''utilisation'!$B$18,'Guide d''utilisation'!$B$19,'Guide d''utilisation'!$B$20,,)","v":"Libellé du critère quand il sera choisi"},null,67,{"$f":"C97","v":"Choix de \rVÉRACITÉ"},{"$f":"IFERROR((VLOOKUP(C97,'Guide d''utilisation'!$M$16:$N$20,2)),\"\")","v":1},{"$f":"IFERROR(CHOOSE(I97,\"\",'Guide d''utilisation'!$E$17,'Guide d''utilisation'!$E$18,'Guide d''utilisation'!$E$19,'Guide d''utilisation'!$E$20,),\"\")","v":""},{"$f":"1/COUNTA($B$94:$B$98)","v":0.2},""]
[{"$f":"CONCATENATE(\"cr \",MID(A97,3,4)+1)","v":"cr 68"},"Les processus et les contrôles sont mis en œuvre en tenant compte des ressources de l'organisme, du contexte de l'activié, des risques identifiés ainsi que de l'environnement réglementaire et sociétal","Choix de \nVÉRACITÉ","",{"$f":"CHOOSE(I98,\"Libellé du critère quand il sera choisi\",'Guide d''utilisation'!$B$17,'Guide d''utilisation'!$B$18,'Guide d''utilisation'!$B$19,'Guide d''utilisation'!$B$20,,)","v":"Libellé du critère quand il sera choisi"},null,{"$f":"G97+1","v":68},"Choix de \rVÉRACITÉ",{"$f":"IFERROR((VLOOKUP(C98,'Guide d''utilisation'!$M$16:$N$20,2)),\"\")","v":1},{"$f":"IFERROR(CHOOSE(I98,\"\",'Guide d''utilisation'!$E$17,'Guide d''utilisation'!$E$18,'Guide d''utilisation'!$E$19,'Guide d''utilisation'!$E$20,),\"\")","v":""},{"$f":"1/COUNTA($B$94:$B$98)","v":0.2},""]
["8.3","Mise en œuvre de système documentaire",{"$f":"M99","v":"Insuffisant"},{"$f":"L99","v":0},{"$f":"IFERROR(IF(D99<='Guide d''utilisation'!$G$17,'Guide d''utilisation'!$I$17,IF(D99<='Guide d''utilisation'!$G$18,'Guide d''utilisation'!$I$18,IF(D99<='Guide d''utilisation'!$G$19,'Guide d''utilisation'!$I$19,'Guide d''utilisation'!$I$20))),\"\")","v":"Conformité de niveau 1 : Il est nécessaire de formaliser les activités réalisées."},null,null,"Sous-Article",null,"vérifier si Somme = 1 =>  ",{"$f":"SUM(K100:K102)","v":1},{"$f":"IFERROR(SUM(L100:L102),\"\")","v":0},{"$f":"IFERROR(IF(L99<='Guide d''utilisation'!$G$17,'Guide d''utilisation'!$H$17,IF(L99<='Guide d''utilisation'!$G$18,'Guide d''utilisation'!$H$18,IF(L99<='Guide d''utilisation'!$G$19,'Guide d''utilisation'!$H$19,'Guide d''utilisation'!$H$20))),\"\")","v":"Insuffisant"},{"$f":"1/COUNTA($M$86:$M$102)","v":0.33333333333333331},{"$f":"N99*L99","v":0}]
[{"$f":"CONCATENATE(\"cr \",MID(A98,3,4)+1)","v":"cr 69"},"Les processus liés aux documents d'activité dans le système documentaire sont  mis en œuvre pour atteindre les objectifs","Choix de \nVÉRACITÉ",{"$f":"J100","v":""},{"$f":"CHOOSE(I100,\"Libellé du critère quand il sera choisi\",'Guide d''utilisation'!$B$17,'Guide d''utilisation'!$B$18,'Guide d''utilisation'!$B$19,'Guide d''utilisation'!$B$20,,)","v":"Libellé du critère quand il sera choisi"},null,{"$f":"G98+1","v":69},{"$f":"C100","v":"Choix de \rVÉRACITÉ"},{"$f":"IFERROR((VLOOKUP(C100,'Guide d''utilisation'!$M$16:$N$20,2)),\"\")","v":1},{"$f":"IFERROR(CHOOSE(I100,\"\",'Guide d''utilisation'!$E$17,'Guide d''utilisation'!$E$18,'Guide d''utilisation'!$E$19,'Guide d''utilisation'!$E$20,),\"\")","v":""},{"$f":"1/COUNTA($B$100:$B$102)","v":0.33333333333333331},{"$f":"IFERROR(J100*K100,\"\")","v":""}]
[{"$f":"CONCATENATE(\"cr \",MID(A100,3,4)+1)","v":"cr 70"},"Une surveillance régulière des performances des systèmes documentaires est établie par rapport aux exigences opérationnelles et aux objectifs","Choix de \nVÉRACITÉ",{"$f":"J101","v":""},{"$f":"CHOOSE(I101,\"Libellé du critère quand il sera choisi\",'Guide d''utilisation'!$B$17,'Guide d''utilisation'!$B$18,'Guide d''utilisation'!$B$19,'Guide d''utilisation'!$B$20,,)","v":"Libellé du critère quand il sera choisi"},null,{"$f":"G100+1","v":70},{"$f":"C101","v":"Choix de \rVÉRACITÉ"},{"$f":"IFERROR((VLOOKUP(C101,'Guide d''utilisation'!$M$16:$N$20,2)),\"\")","v":1},{"$f":"IFERROR(CHOOSE(I101,\"\",'Guide d''utilisation'!$E$17,'Guide d''utilisation'!$E$18,'Guide d''utilisation'!$E$19,'Guide d''utilisation'!$E$20,),\"\")","v":""},{"$f":"1/COUNTA($B$100:$B$102)","v":0.33333333333333331},""]
[{"$f":"CONCATENATE(\"cr \",MID(A101,3,4)+1)","v":"cr 71"},"L'organisme gére le foctionnement des systèmes documentaires","Choix de \nVÉRACITÉ","",{"$f":"CHOOSE(I102,\"Libellé du critère quand il sera choisi\",'Guide d''utilisation'!$B$17,'Guide d''utilisation'!$B$18,'Guide d''utilisation'!$B$19,'Guide d''utilisation'!$B$20,,)","v":"Libellé du critère quand il sera choisi"},null,{"$f":"G101+1","v":71},"Choix de \rVÉRACITÉ",{"$f":"IFERROR((VLOOKUP(C102,'Guide d''utilisation'!$M$16:$N$20,2)),\"\")","v":1},{"$f":"IFERROR(CHOOSE(I102,\"\",'Guide d''utilisation'!$E$17,'Guide d''utilisation'!$E$18,'Guide d''utilisation'!$E$19,'Guide d''utilisation'!$E$20,),\"\")","v":""},{"$f":"1/COUNTA($B$100:$B$102)","v":0.33333333333333331},""]
["Art. 9","Évaluation des performances",{"$f":"P103","v":"Insuffisant"},{"$f":"O103","v":0},{"$f":"IFERROR(IF(D103<='Guide d''utilisation'!$G$17,'Guide d''utilisation'!$I$17,IF(D103<='Guide d''utilisation'!$G$18,'Guide d''utilisation'!$I$18,IF(D103<='Guide d''utilisation'!$G$19,'Guide d''utilisation'!$I$19,'Guide d''utilisation'!$I$20))),\"\")","v":"Conformité de niveau 1 : Il est nécessaire de formaliser les activités réalisées."},null,null,"Article",null,null,null,null,"vérifier si Somme = 1 =>  ",{"$f":"SUM(N104:N120)","v":1},{"$f":"IFERROR(SUM(O104:O120),\"\")","v":0},{"$f":"IFERROR(IF(O103<='Guide d''utilisation'!$G$17,'Guide d''utilisation'!$H$17,IF(O103<='Guide d''utilisation'!$G$18,'Guide d''utilisation'!$H$18,IF(O103<='Guide d''utilisation'!$G$19,'Guide d''utilisation'!$H$19,'Guide d''utilisation'!$H$20))),\"\")","v":"Insuffisant"},{"$f":"1/7","v":0.14285714285714285},{"$f":"O103*Q103","v":0}]
["9.1","Surveillance, mesure, analyse et évaluation des performances",{"$f":"M104","v":"Insuffisant"},{"$f":"L104","v":0},{"$f":"IFERROR(IF(D104<='Guide d''utilisation'!$G$17,'Guide d''utilisation'!$I$17,IF(D104<='Guide d''utilisation'!$G$18,'Guide d''utilisation'!$I$18,IF(D104<='Guide d''utilisation'!$G$19,'Guide d''utilisation'!$I$19,'Guide d''utilisation'!$I$20))),\"\")","v":"Conformité de niveau 1 : Il est nécessaire de formaliser les activités réalisées."},null,null,"Sous-Article",null,"vérifier si Somme = 1 =>  ",{"$f":"SUM(K105:K109)","v":1},{"$f":"IFERROR(SUM(L105:L109),\"\")","v":0},{"$f":"IFERROR(IF(L104<='Guide d''utilisation'!$G$17,'Guide d''utilisation'!$H$17,IF(L104<='Guide d''utilisation'!$G$18,'Guide d''utilisation'!$H$18,IF(L104<='Guide d''utilisation'!$G$19,'Guide d''utilisation'!$H$19,'Guide d''utilisation'!$H$20))),\"\")","v":"Insuffisant"},{"$f":"1/COUNTA($M$104:$M$116)","v":0.33333333333333331},{"$f":"N104*L104","v":0}]
[{"$f":"CONCATENATE(\"cr \",MID(A102,3,4)+1)","v":"cr 72"},"L'organisme établit les critères et les modalités de surveillance pour assurer la validité des résultats","Choix de \nVÉRACITÉ",{"$f":"J105","v":""},{"$f":"CHOOSE(I105,\"Libellé du critère quand il sera choisi\",'Guide d''utilisation'!$B$17,'Guide d''utilisation'!$B$18,'Guide d''utilisation'!$B$19,'Guide d''utilisation'!$B$20,,)","v":"Libellé du critère quand il sera choisi"},null,{"$f":"G102+1","v":72},{"$f":"C105","v":"Choix de \rVÉRACITÉ"},{"$f":"IFERROR((VLOOKUP(C105,'Guide d''utilisation'!$M$16:$N$20,2)),\"\")","v":1},{"$f":"IFERROR(CHOOSE(I105,\"\",'Guide d''utilisation'!$E$17,'Guide d''utilisation'!$E$18,'Guide d''utilisation'!$E$19,'Guide d''utilisation'!$E$20,),\"\")","v":""},{"$f":"1/COUNTA($B$105:$B$109)","v":0.2},{"$f":"IFERROR(J105*K105,\"\")","v":""}]
[{"$f":"CONCATENATE(\"cr \",MID(A105,3,4)+1)","v":"cr 73"},"L'organisme planifie les opérations de surveillance, de mesure ainsi que l'analyse et l'évaluation des résultats","Choix de \nVÉRACITÉ",{"$f":"J106","v":""},{"$f":"CHOOSE(I106,\"Libellé du critère quand il sera choisi\",'Guide d''utilisation'!$B$17,'Guide d''utilisation'!$B$18,'Guide d''utilisation'!$B$19,'Guide d''utilisation'!$B$20,,)","v":"Libellé du critère quand il sera choisi"},null,{"$f":"G105+1","v":73},{"$f":"C106","v":"Choix de \rVÉRACITÉ"},{"$f":"IFERROR((VLOOKUP(C106,'Guide d''utilisation'!$M$16:$N$20,2)),\"\")","v":1},{"$f":"IFERROR(CHOOSE(I106,\"\",'Guide d''utilisation'!$E$17,'Guide d''utilisation'!$E$18,'Guide d''utilisation'!$E$19,'Guide d''utilisation'!$E$20,),\"\")","v":""},{"$f":"1/COUNTA($B$105:$B$109)","v":0.2},{"$f":"IFERROR(J106*K106,\"\")","v":""}]
[{"$f":"CONCATENATE(\"cr \",MID(A106,3,4)+1)","v":"cr 74"},"L'organisme  prend des mesures pour parer à l'apparition de défauts avant la production des cas de non-conformité","Choix de \nVÉRACITÉ",{"$f":"J107","v":""},{"$f":"CHOOSE(I107,\"Libellé du critère quand il sera choisi\",'Guide d''utilisation'!$B$17,'Guide d''utilisation'!$B$18,'Guide d''utilisation'!$B$19,'Guide d''utilisation'!$B$20,,)","v":"Libellé du critère quand il sera choisi"},null,{"$f":"G106+1","v":74},{"$f":"C107","v":"Choix de \rVÉRACITÉ"},{"$f":"IFERROR((VLOOKUP(C107,'Guide d''utilisation'!$M$16:$N$20,2)),\"\")","v":1},{"$f":"IFERROR(CHOOSE(I107,\"\",'Guide d''utilisation'!$E$17,'Guide d''utilisation'!$E$18,'Guide d''utilisation'!$E$19,'Guide d''utilisation'!$E$20,),\"\")","v":""},{"$f":"1/COUNTA($B$105:$B$109)","v":0.2},{"$f":"IFERROR(J107*K107,\"\")","v":""}]
[{"$f":"CONCATENATE(\"cr \",MID(A107,3,4)+1)","v":"cr 75"},"Des informations documentées sont conservées comme preuve des résultats de la performance obtenue et l'efficacité du SGDA","Choix de \nVÉRACITÉ",{"$f":"J108","v":""},{"$f":"CHOOSE(I108,\"Libellé du critère quand il sera choisi\",'Guide d''utilisation'!$B$17,'Guide d''utilisation'!$B$18,'Guide d''utilisation'!$B$19,'Guide d''utilisation'!$B$20,,)","v":"Libellé du critère quand il sera choisi"},null,{"$f":"G107+1","v":75},{"$f":"C108","v":"Choix de \rVÉRACITÉ"},{"$f":"IFERROR((VLOOKUP(C108,'Guide d''utilisation'!$M$16:$N$20,2)),\"\")","v":1},{"$f":"IFERROR(CHOOSE(I108,\"\",'Guide d''utilisation'!$E$17,'Guide d''utilisation'!$E$18,'Guide d''utilisation'!$E$19,'Guide d''utilisation'!$E$20,),\"\")","v":""},{"$f":"1/COUNTA($B$105:$B$109)","v":0.2},{"$f":"IFERROR(J108*K108,\"\")","v":""}]
[{"$f":"CONCATENATE(\"cr \",MID(A108,3,4)+1)","v":"cr 76"},"Les données issues de la surveillance et de la mesure sont évaluées et analysées pour progresser à tous les niveaux (parties prenantes, processus, objectifs, résultats...)","Choix de \nVÉRACITÉ",{"$f":"J109","v":""},{"$f":"CHOOSE(I109,\"Libellé du critère quand il sera choisi\",'Guide d''utilisation'!$B$17,'Guide d''utilisation'!$B$18,'Guide d''utilisation'!$B$19,'Guide d''utilisation'!$B$20,,)","v":"Libellé du critère quand il sera choisi"},null,{"$f":"G108+1","v":76},{"$f":"C109","v":"Choix de \rVÉRACITÉ"},{"$f":"IFERROR((VLOOKUP(C109,'Guide d''utilisation'!$M$16:$N$20,2)),\"\")","v":1},{"$f":"IFERROR(CHOOSE(I109,\"\",'Guide d''utilisation'!$E$17,'Guide d''utilisation'!$E$18,'Guide d''utilisation'!$E$19,'Guide d''utilisation'!$E$20,),\"\")","v":""},{"$f":"1/COUNTA($B$105:$B$109)","v":0.2},{"$f":"IFERROR(J109*K109,\"\")","v":""}]
["9.2","Audit interne du système",{"$f":"M110","v":"Insuffisant"},{"$f":"L110","v":0},{"$f":"IFERROR(IF(D110<='Guide d''utilisation'!$G$17,'Guide d''utilisation'!$I$17,IF(D110<='Guide d''utilisation'!$G$18,'Guide d''utilisation'!$I$18,IF(D110<='Guide d''utilisation'!$G$19,'Guide d''utilisation'!$I$19,'Guide d''utilisation'!$I$20))),\"\")","v":"Conformité de niveau 1 : Il est nécessaire de formaliser les activités réalisées."},null,null,"Sous-Article",null,"vérifier si Somme = 1 =>  ",{"$f":"SUM(K111:K115)","v":1},{"$f":"IFERROR(SUM(L111:L115),\"\")","v":0},{"$f":"IFERROR(IF(L110<='Guide d''utilisation'!$G$17,'Guide d''utilisation'!$H$17,IF(L110<='Guide d''utilisation'!$G$18,'Guide d''utilisation'!$H$18,IF(L110<='Guide d''utilisation'!$G$19,'Guide d''utilisation'!$H$19,'Guide d''utilisation'!$H$20))),\"\")","v":"Insuffisant"},{"$f":"1/COUNTA($M$104:$M$116)","v":0.33333333333333331},{"$f":"N110*L110","v":0}]
[{"$f":"CONCATENATE(\"cr \",MID(A109,3,4)+1)","v":"cr 77"},"Les audits internes sont planifiés, établis et mis en œuvre à des intervalles déterminés ","Choix de \nVÉRACITÉ",{"$f":"J111","v":""},{"$f":"CHOOSE(I111,\"Libellé du critère quand il sera choisi\",'Guide d''utilisation'!$B$17,'Guide d''utilisation'!$B$18,'Guide d''utilisation'!$B$19,'Guide d''utilisation'!$B$20,,)","v":"Libellé du critère quand il sera choisi"},null,{"$f":"G109+1","v":77},{"$f":"C111","v":"Choix de \rVÉRACITÉ"},{"$f":"IFERROR((VLOOKUP(C111,'Guide d''utilisation'!$M$16:$N$20,2)),\"\")","v":1},{"$f":"IFERROR(CHOOSE(I111,\"\",'Guide d''utilisation'!$E$17,'Guide d''utilisation'!$E$18,'Guide d''utilisation'!$E$19,'Guide d''utilisation'!$E$20,),\"\")","v":""},{"$f":"1/COUNTA($B$111:$B$115)","v":0.2},{"$f":"IFERROR(J111*K111,\"\")","v":""}]
[{"$f":"CONCATENATE(\"cr \",MID(A111,3,4)+1)","v":"cr 78"},"Les critères et le périmètre de chaque audit sont définis","Choix de \nVÉRACITÉ",{"$f":"J112","v":""},{"$f":"CHOOSE(I112,\"Libellé du critère quand il sera choisi\",'Guide d''utilisation'!$B$17,'Guide d''utilisation'!$B$18,'Guide d''utilisation'!$B$19,'Guide d''utilisation'!$B$20,,)","v":"Libellé du critère quand il sera choisi"},null,{"$f":"G111+1","v":78},{"$f":"C112","v":"Choix de \rVÉRACITÉ"},{"$f":"IFERROR((VLOOKUP(C112,'Guide d''utilisation'!$M$16:$N$20,2)),\"\")","v":1},{"$f":"IFERROR(CHOOSE(I112,\"\",'Guide d''utilisation'!$E$17,'Guide d''utilisation'!$E$18,'Guide d''utilisation'!$E$19,'Guide d''utilisation'!$E$20,),\"\")","v":""},{"$f":"1/COUNTA($B$111:$B$115)","v":0.2},{"$f":"IFERROR(J112*K112,\"\")","v":""}]
[{"$f":"CONCATENATE(\"cr \",MID(A112,3,4)+1)","v":"cr 79"},"Les auditeurs et ceux qui conduiront les audits sont sélectionnés en s'assurant de l'objectivité et de l'impartialité du processus d'audit","Choix de \nVÉRACITÉ",{"$f":"J113","v":""},{"$f":"CHOOSE(I113,\"Libellé du critère quand il sera choisi\",'Guide d''utilisation'!$B$17,'Guide d''utilisation'!$B$18,'Guide d''utilisation'!$B$19,'Guide d''utilisation'!$B$20,,)","v":"Libellé du critère quand il sera choisi"},null,{"$f":"G112+1","v":79},{"$f":"C113","v":"Choix de \rVÉRACITÉ"},{"$f":"IFERROR((VLOOKUP(C113,'Guide d''utilisation'!$M$16:$N$20,2)),\"\")","v":1},{"$f":"IFERROR(CHOOSE(I113,\"\",'Guide d''utilisation'!$E$17,'Guide d''utilisation'!$E$18,'Guide d''utilisation'!$E$19,'Guide d''utilisation'!$E$20,),\"\")","v":""},{"$f":"1/COUNTA($B$111:$B$115)","v":0.2},{"$f":"IFERROR(J113*K113,\"\")","v":""}]
[{"$f":"CONCATENATE(\"cr \",MID(A113,3,4)+1)","v":"cr 80"},"Les résultats des audits sont communiqués aux responsables idoines ","Choix de \nVÉRACITÉ",{"$f":"J114","v":""},{"$f":"CHOOSE(I114,\"Libellé du critère quand il sera choisi\",'Guide d''utilisation'!$B$17,'Guide d''utilisation'!$B$18,'Guide d''utilisation'!$B$19,'Guide d''utilisation'!$B$20,,)","v":"Libellé du critère quand il sera choisi"},null,{"$f":"G113+1","v":80},{"$f":"C114","v":"Choix de \rVÉRACITÉ"},{"$f":"IFERROR((VLOOKUP(C114,'Guide d''utilisation'!$M$16:$N$20,2)),\"\")","v":1},{"$f":"IFERROR(CHOOSE(I114,\"\",'Guide d''utilisation'!$E$17,'Guide d''utilisation'!$E$18,'Guide d''utilisation'!$E$19,'Guide d''utilisation'!$E$20,),\"\")","v":""},{"$f":"1/COUNTA($B$111:$B$115)","v":0.2},{"$f":"IFERROR(J114*K114,\"\")","v":""}]
[{"$f":"CONCATENATE(\"cr \",MID(A114,3,4)+1)","v":"cr 81"},"Des informations documentées sont conservées comme preuve des résultats","Choix de \nVÉRACITÉ",{"$f":"J115","v":""},{"$f":"CHOOSE(I115,\"Libellé du critère quand il sera choisi\",'Guide d''utilisation'!$B$17,'Guide d''utilisation'!$B$18,'Guide d''utilisation'!$B$19,'Guide d''utilisation'!$B$20,,)","v":"Libellé du critère quand il sera choisi"},null,{"$f":"G114+1","v":81},{"$f":"C115","v":"Choix de \rVÉRACITÉ"},{"$f":"IFERROR((VLOOKUP(C115,'Guide d''utilisation'!$M$16:$N$20,2)),\"\")","v":1},{"$f":"IFERROR(CHOOSE(I115,\"\",'Guide d''utilisation'!$E$17,'Guide d''utilisation'!$E$18,'Guide d''utilisation'!$E$19,'Guide d''utilisation'!$E$20,),\"\")","v":""},{"$f":"1/COUNTA($B$111:$B$115)","v":0.2},{"$f":"IFERROR(J115*K115,\"\")","v":""}]
["9.3","Revue de direction",{"$f":"M116","v":"Insuffisant"},{"$f":"L116","v":0},{"$f":"IFERROR(IF(D116<='Guide d''utilisation'!$G$17,'Guide d''utilisation'!$I$17,IF(D116<='Guide d''utilisation'!$G$18,'Guide d''utilisation'!$I$18,IF(D116<='Guide d''utilisation'!$G$19,'Guide d''utilisation'!$I$19,'Guide d''utilisation'!$I$20))),\"\")","v":"Conformité de niveau 1 : Il est nécessaire de formaliser les activités réalisées."},null,null,"Sous-Article",null,"vérifier si Somme = 1 =>  ",{"$f":"SUM(K117:K120)","v":1},{"$f":"IFERROR(SUM(L117:L120),\"\")","v":0},{"$f":"IFERROR(IF(L116<='Guide d''utilisation'!$G$17,'Guide d''utilisation'!$H$17,IF(L116<='Guide d''utilisation'!$G$18,'Guide d''utilisation'!$H$18,IF(L116<='Guide d''utilisation'!$G$19,'Guide d''utilisation'!$H$19,'Guide d''utilisation'!$H$20))),\"\")","v":"Insuffisant"},{"$f":"1/COUNTA($M$104:$M$116)","v":0.33333333333333331},{"$f":"N116*L116","v":0}]
[{"$f":"CONCATENATE(\"cr \",MID(A115,3,4)+1)","v":"cr 82"},"La revue du SGDA est réalisée à des intervalles programmés pour s'assurer de sa pertinence et son adéquation aux besoins et à l'efficacité de l'organisme","Choix de \nVÉRACITÉ",{"$f":"J117","v":""},{"$f":"CHOOSE(I117,\"Libellé du critère quand il sera choisi\",'Guide d''utilisation'!$B$17,'Guide d''utilisation'!$B$18,'Guide d''utilisation'!$B$19,'Guide d''utilisation'!$B$20,,)","v":"Libellé du critère quand il sera choisi"},null,{"$f":"G115+1","v":82},{"$f":"C117","v":"Choix de \rVÉRACITÉ"},{"$f":"IFERROR((VLOOKUP(C117,'Guide d''utilisation'!$M$16:$N$20,2)),\"\")","v":1},{"$f":"IFERROR(CHOOSE(I117,\"\",'Guide d''utilisation'!$E$17,'Guide d''utilisation'!$E$18,'Guide d''utilisation'!$E$19,'Guide d''utilisation'!$E$20,),\"\")","v":""},{"$f":"1/COUNTA($B$117:$B$120)","v":0.25},{"$f":"IFERROR(J117*K117,\"\")","v":""}]
[{"$f":"CONCATENATE(\"cr \",MID(A117,3,4)+1)","v":"cr 83"},"La revue de direction exploite des éléments d'entrée pertinents et complets (bilans, résultats, enquêtes, efficience, analyses, prestataires...)","Choix de \nVÉRACITÉ",{"$f":"J118","v":""},{"$f":"CHOOSE(I118,\"Libellé du critère quand il sera choisi\",'Guide d''utilisation'!$B$17,'Guide d''utilisation'!$B$18,'Guide d''utilisation'!$B$19,'Guide d''utilisation'!$B$20,,)","v":"Libellé du critère quand il sera choisi"},null,{"$f":"G117+1","v":83},{"$f":"C118","v":"Choix de \rVÉRACITÉ"},{"$f":"IFERROR((VLOOKUP(C118,'Guide d''utilisation'!$M$16:$N$20,2)),\"\")","v":1},{"$f":"IFERROR(CHOOSE(I118,\"\",'Guide d''utilisation'!$E$17,'Guide d''utilisation'!$E$18,'Guide d''utilisation'!$E$19,'Guide d''utilisation'!$E$20,),\"\")","v":""},{"$f":"1/COUNTA($B$117:$B$120)","v":0.25},{"$f":"IFERROR(J118*K118,\"\")","v":""}]
[{"$f":"CONCATENATE(\"cr \",MID(A118,3,4)+1)","v":"cr 84"},"La revue de direction fournit des décisions et actions sur les possibilités d’amélioration continue et les besoins de modifier le SGDA","Choix de \nVÉRACITÉ",{"$f":"J119","v":""},{"$f":"CHOOSE(I119,\"Libellé du critère quand il sera choisi\",'Guide d''utilisation'!$B$17,'Guide d''utilisation'!$B$18,'Guide d''utilisation'!$B$19,'Guide d''utilisation'!$B$20,,)","v":"Libellé du critère quand il sera choisi"},null,{"$f":"G118+1","v":84},{"$f":"C119","v":"Choix de \rVÉRACITÉ"},{"$f":"IFERROR((VLOOKUP(C119,'Guide d''utilisation'!$M$16:$N$20,2)),\"\")","v":1},{"$f":"IFERROR(CHOOSE(I119,\"\",'Guide d''utilisation'!$E$17,'Guide d''utilisation'!$E$18,'Guide d''utilisation'!$E$19,'Guide d''utilisation'!$E$20,),\"\")","v":""},{"$f":"1/COUNTA($B$117:$B$120)","v":0.25},{"$f":"IFERROR(J119*K119,\"\")","v":""}]
[{"$f":"CONCATENATE(\"cr \",MID(A119,3,4)+1)","v":"cr 85"},"Les résultats des revues de direction sont conservés sous forme d'informations documentées","Choix de \nVÉRACITÉ",{"$f":"J120","v":""},{"$f":"CHOOSE(I120,\"Libellé du critère quand il sera choisi\",'Guide d''utilisation'!$B$17,'Guide d''utilisation'!$B$18,'Guide d''utilisation'!$B$19,'Guide d''utilisation'!$B$20,,)","v":"Libellé du critère quand il sera choisi"},null,{"$f":"G119+1","v":85},{"$f":"C120","v":"Choix de \rVÉRACITÉ"},{"$f":"IFERROR((VLOOKUP(C120,'Guide d''utilisation'!$M$16:$N$20,2)),\"\")","v":1},{"$f":"IFERROR(CHOOSE(I120,\"\",'Guide d''utilisation'!$E$17,'Guide d''utilisation'!$E$18,'Guide d''utilisation'!$E$19,'Guide d''utilisation'!$E$20,),\"\")","v":""},{"$f":"1/COUNTA($B$117:$B$120)","v":0.25},{"$f":"IFERROR(J120*K120,\"\")","v":""}]
["Art. 10","Amélioration",{"$f":"P121","v":"Insuffisant"},{"$f":"O121","v":0},{"$f":"IFERROR(IF(D121<='Guide d''utilisation'!$G$17,'Guide d''utilisation'!$I$17,IF(D121<='Guide d''utilisation'!$G$18,'Guide d''utilisation'!$I$18,IF(D121<='Guide d''utilisation'!$G$19,'Guide d''utilisation'!$I$19,'Guide d''utilisation'!$I$20))),\"\")","v":"Conformité de niveau 1 : Il est nécessaire de formaliser les activités réalisées."},null,null,"Article",null,null,null,null,"vérifier si Somme = 1 =>  ",{"$f":"SUM(N122:N136)","v":1},{"$f":"IFERROR(SUM(O122:O136),\"\")","v":0},{"$f":"IFERROR(IF(O121<='Guide d''utilisation'!$G$17,'Guide d''utilisation'!$H$17,IF(O121<='Guide d''utilisation'!$G$18,'Guide d''utilisation'!$H$18,IF(O121<='Guide d''utilisation'!$G$19,'Guide d''utilisation'!$H$19,'Guide d''utilisation'!$H$20))),\"\")","v":"Insuffisant"},{"$f":"1/7","v":0.14285714285714285},{"$f":"O121*Q121","v":0}]
["10.1","Contrôle des non-conformités et actions correctives",{"$f":"M122","v":"Insuffisant"},{"$f":"L122","v":0},{"$f":"IFERROR(IF(D122<='Guide d''utilisation'!$G$17,'Guide d''utilisation'!$I$17,IF(D122<='Guide d''utilisation'!$G$18,'Guide d''utilisation'!$I$18,IF(D122<='Guide d''utilisation'!$G$19,'Guide d''utilisation'!$I$19,'Guide d''utilisation'!$I$20))),\"\")","v":"Conformité de niveau 1 : Il est nécessaire de formaliser les activités réalisées."},null,null,"Sous-Article",null,"vérifier si Somme = 1 =>  ",{"$f":"SUM(K123:K131)","v":1.0000000000000002},{"$f":"IFERROR(SUM(L123:L131),\"\")","v":0},{"$f":"IFERROR(IF(L122<='Guide d''utilisation'!$G$17,'Guide d''utilisation'!$H$17,IF(L122<='Guide d''utilisation'!$G$18,'Guide d''utilisation'!$H$18,IF(L122<='Guide d''utilisation'!$G$19,'Guide d''utilisation'!$H$19,'Guide d''utilisation'!$H$20))),\"\")","v":"Insuffisant"},{"$f":"1/COUNTA($M$122:$M$136)","v":0.5},{"$f":"N122*L122","v":0}]
[{"$f":"CONCATENATE(\"cr \",MID(A120,3,4)+1)","v":"cr 86"},"L’organisme identifie toute forme de non-conformité","Choix de \nVÉRACITÉ",{"$f":"J123","v":""},{"$f":"CHOOSE(I123,\"Libellé du critère quand il sera choisi\",'Guide d''utilisation'!$B$17,'Guide d''utilisation'!$B$18,'Guide d''utilisation'!$B$19,'Guide d''utilisation'!$B$20,,)","v":"Libellé du critère quand il sera choisi"},null,{"$f":"G120+1","v":86},{"$f":"C123","v":"Choix de \rVÉRACITÉ"},{"$f":"IFERROR((VLOOKUP(C123,'Guide d''utilisation'!$M$16:$N$20,2)),\"\")","v":1},{"$f":"IFERROR(CHOOSE(I123,\"\",'Guide d''utilisation'!$E$17,'Guide d''utilisation'!$E$18,'Guide d''utilisation'!$E$19,'Guide d''utilisation'!$E$20,),\"\")","v":""},{"$f":"1/COUNTA($B$123:$B$131)","v":0.1111111111111111},{"$f":"IFERROR(J123*K123,\"\")","v":""}]
[{"$f":"CONCATENATE(\"cr \",MID(A123,3,4)+1)","v":"cr 87"},"L’organisme réagit à chaque non-conformité pour la corriger, la maîtriser et prendre en charge les conséquences","Choix de \nVÉRACITÉ",{"$f":"J124","v":""},{"$f":"CHOOSE(I124,\"Libellé du critère quand il sera choisi\",'Guide d''utilisation'!$B$17,'Guide d''utilisation'!$B$18,'Guide d''utilisation'!$B$19,'Guide d''utilisation'!$B$20,,)","v":"Libellé du critère quand il sera choisi"},null,{"$f":"G123+1","v":87},{"$f":"C124","v":"Choix de \rVÉRACITÉ"},{"$f":"IFERROR((VLOOKUP(C124,'Guide d''utilisation'!$M$16:$N$20,2)),\"\")","v":1},{"$f":"IFERROR(CHOOSE(I124,\"\",'Guide d''utilisation'!$E$17,'Guide d''utilisation'!$E$18,'Guide d''utilisation'!$E$19,'Guide d''utilisation'!$E$20,),\"\")","v":""},{"$f":"1/COUNTA($B$123:$B$131)","v":0.1111111111111111},{"$f":"IFERROR(J124*K124,\"\")","v":""}]
[{"$f":"CONCATENATE(\"cr \",MID(A124,3,4)+1)","v":"cr 88"},"L’organisme évalue la nécessité d'entreprendre des actions pour éliminier les causes des non-conformités","Choix de \nVÉRACITÉ",{"$f":"J125","v":""},{"$f":"CHOOSE(I125,\"Libellé du critère quand il sera choisi\",'Guide d''utilisation'!$B$17,'Guide d''utilisation'!$B$18,'Guide d''utilisation'!$B$19,'Guide d''utilisation'!$B$20,,)","v":"Libellé du critère quand il sera choisi"},null,{"$f":"G124+1","v":88},{"$f":"C125","v":"Choix de \rVÉRACITÉ"},{"$f":"IFERROR((VLOOKUP(C125,'Guide d''utilisation'!$M$16:$N$20,2)),\"\")","v":1},{"$f":"IFERROR(CHOOSE(I125,\"\",'Guide d''utilisation'!$E$17,'Guide d''utilisation'!$E$18,'Guide d''utilisation'!$E$19,'Guide d''utilisation'!$E$20,),\"\")","v":""},{"$f":"1/COUNTA($B$123:$B$131)","v":0.1111111111111111},{"$f":"IFERROR(J125*K125,\"\")","v":""}]
[{"$f":"CONCATENATE(\"cr \",MID(A125,3,4)+1)","v":"cr 89"},"L'organisme passe en revue les non-conformités","Choix de \nVÉRACITÉ",{"$f":"J126","v":""},{"$f":"CHOOSE(I126,\"Libellé du critère quand il sera choisi\",'Guide d''utilisation'!$B$17,'Guide d''utilisation'!$B$18,'Guide d''utilisation'!$B$19,'Guide d''utilisation'!$B$20,,)","v":"Libellé du critère quand il sera choisi"},null,{"$f":"G125+1","v":89},{"$f":"C126","v":"Choix de \rVÉRACITÉ"},{"$f":"IFERROR((VLOOKUP(C126,'Guide d''utilisation'!$M$16:$N$20,2)),\"\")","v":1},{"$f":"IFERROR(CHOOSE(I126,\"\",'Guide d''utilisation'!$E$17,'Guide d''utilisation'!$E$18,'Guide d''utilisation'!$E$19,'Guide d''utilisation'!$E$20,),\"\")","v":""},{"$f":"1/COUNTA($B$123:$B$131)","v":0.1111111111111111},{"$f":"IFERROR(J126*K126,\"\")","v":""}]
["cr 90","L'organisme identifie si des non-conformités semblables existent potentiellement dans le SGDA","Choix de \nVÉRACITÉ","",{"$f":"CHOOSE(I127,\"Libellé du critère quand il sera choisi\",'Guide d''utilisation'!$B$17,'Guide d''utilisation'!$B$18,'Guide d''utilisation'!$B$19,'Guide d''utilisation'!$B$20,,)","v":"Libellé du critère quand il sera choisi"},null,90,"Choix de \rVÉRACITÉ",{"$f":"IFERROR((VLOOKUP(C127,'Guide d''utilisation'!$M$16:$N$20,2)),\"\")","v":1},{"$f":"IFERROR(CHOOSE(I127,\"\",'Guide d''utilisation'!$E$17,'Guide d''utilisation'!$E$18,'Guide d''utilisation'!$E$19,'Guide d''utilisation'!$E$20,),\"\")","v":""},0.1111111111111111,""]
["cr 91","Si nécessaire, l’organisme détermine et met en œuvre l'action corrective ","Choix de \nVÉRACITÉ","",{"$f":"CHOOSE(I128,\"Libellé du critère quand il sera choisi\",'Guide d''utilisation'!$B$17,'Guide d''utilisation'!$B$18,'Guide d''utilisation'!$B$19,'Guide d''utilisation'!$B$20,,)","v":"Libellé du critère quand il sera choisi"},null,91,"Choix de \rVÉRACITÉ",{"$f":"IFERROR((VLOOKUP(C128,'Guide d''utilisation'!$M$16:$N$20,2)),\"\")","v":1},{"$f":"IFERROR(CHOOSE(I128,\"\",'Guide d''utilisation'!$E$17,'Guide d''utilisation'!$E$18,'Guide d''utilisation'!$E$19,'Guide d''utilisation'!$E$20,),\"\")","v":""},0.1111111111111111,""]
["cr 92","L'efficacité de toute action corrective est évaluée","Choix de \nVÉRACITÉ","",{"$f":"CHOOSE(I129,\"Libellé du critère quand il sera choisi\",'Guide d''utilisation'!$B$17,'Guide d''utilisation'!$B$18,'Guide d''utilisation'!$B$19,'Guide d''utilisation'!$B$20,,)","v":"Libellé du critère quand il sera choisi"},null,92,"Choix de \rVÉRACITÉ",{"$f":"IFERROR((VLOOKUP(C129,'Guide d''utilisation'!$M$16:$N$20,2)),\"\")","v":1},{"$f":"IFERROR(CHOOSE(I129,\"\",'Guide d''utilisation'!$E$17,'Guide d''utilisation'!$E$18,'Guide d''utilisation'!$E$19,'Guide d''utilisation'!$E$20,),\"\")","v":""},0.1111111111111111,""]
["cr 93","Si nécessaire, le SGDA est modifié","Choix de \nVÉRACITÉ","",{"$f":"CHOOSE(I130,\"Libellé du critère quand il sera choisi\",'Guide d''utilisation'!$B$17,'Guide d''utilisation'!$B$18,'Guide d''utilisation'!$B$19,'Guide d''utilisation'!$B$20,,)","v":"Libellé du critère quand il sera choisi"},null,93,"Choix de \rVÉRACITÉ",{"$f":"IFERROR((VLOOKUP(C130,'Guide d''utilisation'!$M$16:$N$20,2)),\"\")","v":1},{"$f":"IFERROR(CHOOSE(I130,\"\",'Guide d''utilisation'!$E$17,'Guide d''utilisation'!$E$18,'Guide d''utilisation'!$E$19,'Guide d''utilisation'!$E$20,),\"\")","v":""},0.1111111111111111,""]
["cr 94","Des informations documentées sur la nature des non-conformités, des actions entreprises en conséquence et de leurs résultats sont conservées","Choix de \nVÉRACITÉ","",{"$f":"CHOOSE(I131,\"Libellé du critère quand il sera choisi\",'Guide d''utilisation'!$B$17,'Guide d''utilisation'!$B$18,'Guide d''utilisation'!$B$19,'Guide d''utilisation'!$B$20,,)","v":"Libellé du critère quand il sera choisi"},null,94,"Choix de \rVÉRACITÉ",{"$f":"IFERROR((VLOOKUP(C131,'Guide d''utilisation'!$M$16:$N$20,2)),\"\")","v":1},{"$f":"IFERROR(CHOOSE(I131,\"\",'Guide d''utilisation'!$E$17,'Guide d''utilisation'!$E$18,'Guide d''utilisation'!$E$19,'Guide d''utilisation'!$E$20,),\"\")","v":""},0.1111111111111111,""]
["10.2"," Amélioration continue",{"$f":"M132","v":"Insuffisant"},{"$f":"L132","v":0},{"$f":"IFERROR(IF(D132<='Guide d''utilisation'!$G$17,'Guide d''utilisation'!$I$17,IF(D132<='Guide d''utilisation'!$G$18,'Guide d''utilisation'!$I$18,IF(D132<='Guide d''utilisation'!$G$19,'Guide d''utilisation'!$I$19,'Guide d''utilisation'!$I$20))),\"\")","v":"Conformité de niveau 1 : Il est nécessaire de formaliser les activités réalisées."},null,null,"Sous-Article",null,"vérifier si Somme = 1 =>  ",{"$f":"SUM(K133:K136)","v":1},{"$f":"IFERROR(SUM(L133:L136),\"\")","v":0},{"$f":"IFERROR(IF(L132<='Guide d''utilisation'!$G$17,'Guide d''utilisation'!$H$17,IF(L132<='Guide d''utilisation'!$G$18,'Guide d''utilisation'!$H$18,IF(L132<='Guide d''utilisation'!$G$19,'Guide d''utilisation'!$H$19,'Guide d''utilisation'!$H$20))),\"\")","v":"Insuffisant"},{"$f":"1/COUNTA($M$122:$M$136)","v":0.5},{"$f":"N132*L132","v":0}]
[{"$f":"CONCATENATE(\"cr \",MID(A131,3,4)+1)","v":"cr 95"},"L’organisme s’engage à améliorer en continu l'efficacité du SGDA","Choix de \nVÉRACITÉ",{"$f":"J133","v":""},{"$f":"CHOOSE(I133,\"Libellé du critère quand il sera choisi\",'Guide d''utilisation'!$B$17,'Guide d''utilisation'!$B$18,'Guide d''utilisation'!$B$19,'Guide d''utilisation'!$B$20,,)","v":"Libellé du critère quand il sera choisi"},null,{"$f":"G131+1","v":95},{"$f":"C133","v":"Choix de \rVÉRACITÉ"},{"$f":"IFERROR((VLOOKUP(C133,'Guide d''utilisation'!$M$16:$N$20,2)),\"\")","v":1},{"$f":"IFERROR(CHOOSE(I133,\"\",'Guide d''utilisation'!$E$17,'Guide d''utilisation'!$E$18,'Guide d''utilisation'!$E$19,'Guide d''utilisation'!$E$20,),\"\")","v":""},{"$f":"1/COUNTA($B$133:$B$136)","v":0.25},{"$f":"IFERROR(J133*K133,\"\")","v":""}]
[{"$f":"CONCATENATE(\"cr \",MID(A133,3,4)+1)","v":"cr 96"},"L'organisme détermine les besoins d’amélioration continue","Choix de \nVÉRACITÉ",{"$f":"J134","v":""},{"$f":"CHOOSE(I134,\"Libellé du critère quand il sera choisi\",'Guide d''utilisation'!$B$17,'Guide d''utilisation'!$B$18,'Guide d''utilisation'!$B$19,'Guide d''utilisation'!$B$20,,)","v":"Libellé du critère quand il sera choisi"},null,{"$f":"G133+1","v":96},{"$f":"C134","v":"Choix de \rVÉRACITÉ"},{"$f":"IFERROR((VLOOKUP(C134,'Guide d''utilisation'!$M$16:$N$20,2)),\"\")","v":1},{"$f":"IFERROR(CHOOSE(I134,\"\",'Guide d''utilisation'!$E$17,'Guide d''utilisation'!$E$18,'Guide d''utilisation'!$E$19,'Guide d''utilisation'!$E$20,),\"\")","v":""},{"$f":"1/COUNTA($B$133:$B$136)","v":0.25},""]
["cr 97","La politique et les objectifs relatifs aux documents d'activité, les résultats des audits, l’analyse des données, les actions correctives et préventives et  l’évaluation de la direction sont pris en compte pour améliorer en continu","Choix de \nVÉRACITÉ","",{"$f":"CHOOSE(I135,\"Libellé du critère quand il sera choisi\",'Guide d''utilisation'!$B$17,'Guide d''utilisation'!$B$18,'Guide d''utilisation'!$B$19,'Guide d''utilisation'!$B$20,,)","v":"Libellé du critère quand il sera choisi"},null,97,"Choix de \rVÉRACITÉ",{"$f":"IFERROR((VLOOKUP(C135,'Guide d''utilisation'!$M$16:$N$20,2)),\"\")","v":1},{"$f":"IFERROR(CHOOSE(I135,\"\",'Guide d''utilisation'!$E$17,'Guide d''utilisation'!$E$18,'Guide d''utilisation'!$E$19,'Guide d''utilisation'!$E$20,),\"\")","v":""},{"$f":"1/COUNTA($B$133:$B$136)","v":0.25},""]
["cr 98","L'ordre de priorité des actions d'amélioration est déterminé en fonction des résultats de l'évaluation du risque","Choix de \nVÉRACITÉ","",{"$f":"CHOOSE(I136,\"Libellé du critère quand il sera choisi\",'Guide d''utilisation'!$B$17,'Guide d''utilisation'!$B$18,'Guide d''utilisation'!$B$19,'Guide d''utilisation'!$B$20,,)","v":"Libellé du critère quand il sera choisi"},null,98,"Choix de \rVÉRACITÉ",{"$f":"IFERROR((VLOOKUP(C136,'Guide d''utilisation'!$M$16:$N$20,2)),\"\")","v":1},{"$f":"IFERROR(CHOOSE(I136,\"\",'Guide d''utilisation'!$E$17,'Guide d''utilisation'!$E$18,'Guide d''utilisation'!$E$19,'Guide d''utilisation'!$E$20,),\"\")","v":""},{"$f":"1/COUNTA($B$133:$B$136)","v":0.25},""]

{"sheet":"Résultats globaux","index":2,"n_rows":61,"n_cols":19,"rows_kept":61,"cut":false,"hidden":false,"merged":[[24,5,24,7],[30,0,30,7],[28,0,28,4],[3,0,3,3],[5,0,5,1],[6,0,6,1],[5,2,5,3],[23,5,23,7],[15,0,15,3],[5,6,6,7],[13,0,13,3],[9,4,9,7],[4,0,4,1],[4,2,4,3],[14,0,14,3],[22,0,22,4],[22,5,22,7],[8,0,8,7],[21,0,21,7],[9,0,9,3],[12,10,12,18]]}
[{"$f":"'Guide d''utilisation'!B1","v":"Document d'appui à la déclaration première partie de conformité à la norme ISO 30301:2011"},null,null,null,null,null,null,"Impression sur pages A4 100% en format horizontal"]
[null,null,null,null,{"$f":"'Guide d''utilisation'!D2","v":"   Autodiagnostic selon la norme ISO 30301:2011"}]
[]
["Informations sur le Service Management de la Qualité",null,null,null,null,null,"Informations sur l'Autodiagnostic"]
[{"$f":"'Guide d''utilisation'!B5","v":"Etablissement :"},null,{"$f":"'Guide d''utilisation'!E5","v":"Nom de l'établissement / entreprise / organisation..."},null,{"$f":"Exigences!A4","v":"Date de l'autodiagnostic : "},{"$f":"IF(Exigences!C4=\"\",\"\",Exigences!C4)","v":""},{"$f":"Exigences!A7","v":"L'équipe d'autodiagnostic :"}]
[{"$f":"'Guide d''utilisation'!B6","v":" Responsable du SMQ : "},null,{"$f":"'Guide d''utilisation'!E6","v":"NOM et Prénom du Responsable Qualité"},null,"Responsable : ",{"$f":"IF(Exigences!C5=\"\",\"\",Exigences!C5)","v":"NOM et Prénom"},{"$f":"Exigences!C7","v":"Noms et Prénoms des participants"}]
[null,null,{"$f":"'Guide d''utilisation'!E7","v":"email :"},{"$f":"'Guide d''utilisation'!I7","v":"Tél :"},{"$f":"IF(Exigences!C6=\"\",\"\",Exigences!C6)","v":"Tél :"},{"$f":"IF(Exigences!E6=\"\",\"\",Exigences!E6)","v":"Email :"}]
[]
["TABLEAUX DE BORD sur les niveaux de CONFORMITÉ et de RÉALISATION selon les exigences de la norme ISO 30301:2011",null,null,null,null,null,null,null,null,null,null,null,"Utilitaires pour les CALCULS et les GRAPHIQUES"]
[{"$f":"CONCATENATE(\"Niveaux de VÉRACITÉ des \", S13, \" critères d'exigence \")","v":"Niveaux de VÉRACITÉ des 98 critères d'exigence "},null,null,null,"Niveaux de CONFORMITÉ des ARTICLES aux exigences de la norme"]
[null,null,null,null,null,"Moyenne générale :",{"$f":"G33","v":0},{"$f":"E33","v":"Insuffisant"},null,null,"Histogramme des niveaux de CONFORMITÉ",null,null,null,null,"Histogramme des niveaux de VÉRACITÉ"]
[null,null,null,null,null,null,null,null,null,null,"CONFORMITÉ","Nb d'Articles","Tracer la moyenne",null,"VÉRACITÉ",null,"Nb de critères d'exigences","Ecart vs Total des critères","Total des critères"]
[null,null,null,null,null,null,null,null,null,null,"Niveaux",{"$f":"SUM(L14:L17)","v":21},": Total ou 0",null,"Niveaux","N°",{"$f":"SUM(Q14:Q17)","v":0},{"$f":"154-Q13","v":154},{"$f":"MAX(Exigences!G1:G137)","v":98}]
[{"$f":"IF(Q13<S13,CONCATENATE(\"Attention : \",R13,\" critères ne sont pas encore traités\"),\"\")","v":"Attention : 154 critères ne sont pas encore traités"},null,null,null,null,null,null,null,null,null,{"$f":"'Guide d''utilisation'!H17","v":"Insuffisant"},{"$f":"IFERROR(COUNTIFS($F$35:$F$61,K14),0)","v":21},{"$f":"IF($E$33=K14,30,0)","v":30},null,"Faux",{"$f":"'Guide d''utilisation'!N17","v":2},{"$f":"IFERROR(COUNTIFS(Exigences!$I$13:$I$136,$P14),0)","v":0}]
["Niveaux de CONFORMITÉ des 21 SOUS-ARTICLES de la norme (et Moyenne)",null,null,null,null,null,null,null,null,null,{"$f":"'Guide d''utilisation'!H18","v":"Informel"},{"$f":"IFERROR(COUNTIFS($F$35:$F$61,K15),0)","v":0},{"$f":"IF($E$33=K15,30,0)","v":0},null,"Plutôt Faux",{"$f":"'Guide d''utilisation'!N18","v":3},{"$f":"IFERROR(COUNTIFS(Exigences!$I$13:$I$136,$P15),0)","v":0}]
[null,null,null,null,null,null,null,null,null,null,{"$f":"'Guide d''utilisation'!H19","v":"Convaincant"},{"$f":"IFERROR(COUNTIFS($F$35:$F$61,K16),0)","v":0},{"$f":"IF($E$33=K16,30,0)","v":0},null,"Plutôt Vrai",{"$f":"'Guide d''utilisation'!N19","v":4},{"$f":"IFERROR(COUNTIFS(Exigences!$I$13:$I$136,$P16),0)","v":0}]
[null,null,null,null,null,null,null,null,null,null,{"$f":"'Guide d''utilisation'!H20","v":"Conforme"},{"$f":"IFERROR(COUNTIFS($F$35:$F$61,K17),0)","v":0},{"$f":"IF($E$33=K17,30,0)","v":0},null,"Vrai",{"$f":"'Guide d''utilisation'!N20","v":5},{"$f":"IFERROR(COUNTIFS(Exigences!$I$13:$I$136,$P17),0)","v":0}]
[]
[]
[]
[]
["BILAN, COMMENTAIRES et PLANS D'AMÉLIORATION"]
["Taux de CONFORMITÉ aux exigences pour les 21 SOUS-ARTICLES de la norme",null,null,null,null,"COMMENTAIRES sur les RÉSULTATS obtenus"]
[null,null,null,null,null,"Commentaires (collectifs si possible)  :"]
[null,null,null,null,null,"DÉCISIONS : Plans d'action PRIORITAIRES"]
[null,null,null,null,null,"QUOI\nObjectifs à atteindre","QUI\nen Interne ou en Externe","QUAND ET OÙ\nDate et Champ d'application"]
[null,null,null,null,null,"Plan n°1 :"]
[null,null,null,null,null,"Plan n°2 :"]
["en pointillés verts : seuil minimal paramétré pour être \"Conforme\" (voir onglet {Mode d'Emploi})",null,null,null,null,"Plan n°3 :"]
[]
["TABLEAU de SYNTHÈSE des RÉSULTATS moyennés de l'évaluation quant au degré de réalisation des actions associées au respect des exigences de l'ISO 30301:2011",null,null,null,null,null,null,null,null,null,null,null,"Coloriage des zones des ARTICLES",null,null,null,null,"Tracage de la limite de CONFORMITÉ"]
[null,null,null,null,null,"Evaluations","Taux %","Niveaux de CONFORMITÉ",null,null,{"$f":"CONCATENATE(\"Fond \",A34)","v":"Fond Art. 4"},{"$f":"CONCATENATE(\"Fond \",A38)","v":"Fond Art. 5"},{"$f":"CONCATENATE(\"Fond \",A42)","v":"Fond Art. 6"},{"$f":"CONCATENATE(\"Fond \",A45)","v":"Fond Art. 7"},{"$f":"CONCATENATE(\"Fond \",A51)","v":"Fond Art. 8"},{"$f":"CONCATENATE(\"Fond \",A55)","v":"Fond Art. 9"},{"$f":"CONCATENATE(\"Fond \",A59)","v":"Fond Art. 10"},{"$f":"'Guide d''utilisation'!F20","v":0.9}]
[null,"Niveau moyen sur l'ensemble des articles de la norme ISO 30301:2011 :",null,null,{"$f":"IFERROR(IF(G33<='Guide d''utilisation'!$G$17,'Guide d''utilisation'!$H$17,IF(G33<='Guide d''utilisation'!$G$18,'Guide d''utilisation'!$H$18,IF(G33<='Guide d''utilisation'!$G$19,'Guide d''utilisation'!$H$19,'Guide d''utilisation'!$H$20))),\"\")","v":"Insuffisant"},null,{"$f":" AVERAGE(G34,G38,G42,G45,G51,G55,G59)","v":0},{"$f":"PROPER(MID(Exigences!E11,14,9))","v":" Niveau 1"},null,null,null,null,null,"Utilitaires pour les CALCULS et les GRAPHIQUES"]
[{"$f":"Exigences!A11","v":"Art. 4"},{"$f":"Exigences!B11","v":"Contexte de l'organisme"},null,null,{"$f":"Exigences!C11","v":"Insuffisant"},null,{"$f":"Exigences!D11","v":0},{"$f":"PROPER(MID(Exigences!E12,14,9))","v":" Niveau 1"},null,null,1]
[null,{"$f":"Exigences!A12","v":"4.1"},"Contexte",null,null,{"$f":"Exigences!C12","v":"Insuffisant"},{"$f":"Exigences!D12","v":0},{"$f":"PROPER(MID(Exigences!E12,14,9))","v":" Niveau 1"},null,null,1,0,0,0,0,0,1,{"$f":"$R$32","v":0.9}]
[null,{"$f":"Exigences!A17","v":"4.2"},"Exigences ",null,null,{"$f":"Exigences!C17","v":"Insuffisant"},{"$f":"Exigences!D17","v":0},{"$f":"PROPER(MID(Exigences!E17,14,9))","v":" Niveau 1"},null,null,1,0,0,0,0,0,0,{"$f":"$R$32","v":0.9}]
[null,{"$f":"Exigences!A22","v":"4.3"},"Domaine d'application du SGDA",null,null,{"$f":"Exigences!C22","v":"Insuffisant"},{"$f":"Exigences!D22","v":0},{"$f":"PROPER(MID(Exigences!E22,14,9))","v":" Niveau 1"},null,null,1,0,0,0,0,0,0,{"$f":"$R$32","v":0.9}]
[{"$f":"Exigences!A25","v":"Art. 5"},{"$f":"Exigences!B25","v":"Leadership"},null,null,{"$f":"Exigences!C25","v":"Insuffisant"},null,{"$f":"Exigences!D25","v":0},{"$f":"PROPER(MID(Exigences!E25,14,9))","v":" Niveau 1"},null,null,1]
[null,{"$f":"Exigences!A26","v":"5.1"},"Leadership et engagement",null,null,{"$f":"Exigences!C26","v":"Insuffisant"},{"$f":"Exigences!D26","v":0},{"$f":"PROPER(MID(Exigences!E26,14,9))","v":" Niveau 1"},null,null,0,1,0,0,0,0,0,{"$f":"$R$32","v":0.9}]
[null,{"$f":"Exigences!A31","v":"5.2"},"Politique",null,null,{"$f":"Exigences!C31","v":"Insuffisant"},{"$f":"Exigences!D31","v":0},{"$f":"PROPER(MID(Exigences!E31,14,9))","v":" Niveau 1"},null,null,0,1,0,0,0,0,0,{"$f":"$R$32","v":0.9}]
[null,{"$f":"Exigences!A36","v":"5.3"},"Rôles, responsabilités et habilitations ",null,null,{"$f":"Exigences!C36","v":"Insuffisant"},{"$f":"Exigences!D36","v":0},{"$f":"PROPER(MID(Exigences!E36,14,9))","v":" Niveau 1"},null,null,null,1,0,0,0,0,0,{"$f":"$R$32","v":0.9}]
[{"$f":"Exigences!A41","v":"Art. 6"},{"$f":"Exigences!B41","v":"Planification"},null,null,{"$f":"Exigences!C41","v":"Insuffisant"},null,{"$f":"Exigences!D41","v":0},{"$f":"PROPER(MID(Exigences!E41,14,9))","v":" Niveau 1"},null,null,0]
[null,{"$f":"Exigences!A42","v":"6.1"},"Actions face aux risques et opportunités",null,null,{"$f":"Exigences!C42","v":"Insuffisant"},{"$f":"Exigences!D42","v":0},{"$f":"PROPER(MID(Exigences!E42,14,9))","v":" Niveau 1"},null,null,0,1,1,0,0,0,0,{"$f":"$R$32","v":0.9}]
[null,{"$f":"Exigences!A47","v":"6.2"},"Objectifs pour les documents d'activité et leur planification",null,null,{"$f":"Exigences!C47","v":"Insuffisant"},{"$f":"Exigences!D47","v":0},{"$f":"PROPER(MID(Exigences!E47,14,9))","v":" Niveau 1"},null,null,0,0,1,0,0,0,0,{"$f":"$R$32","v":0.9}]
[{"$f":"Exigences!A55","v":"Art. 7"},{"$f":"Exigences!B55","v":"Support"},null,null,{"$f":"Exigences!C55","v":"Insuffisant"},null,{"$f":"Exigences!D55","v":0},{"$f":"PROPER(MID(Exigences!E55,14,9))","v":" Niveau 1"},null,null,0]
[null,{"$f":"Exigences!A56","v":"7.1"},"Ressources",null,null,{"$f":"Exigences!C56","v":"Insuffisant"},{"$f":"Exigences!D56","v":0},{"$f":"PROPER(MID(Exigences!E56,14,9))","v":" Niveau 1"},null,null,0,0,1,1,0,0,0,{"$f":"$R$32","v":0.9}]
[null,{"$f":"Exigences!A61","v":"7.2"},"Compétences",null,null,{"$f":"Exigences!C61","v":"Insuffisant"},{"$f":"Exigences!D61","v":0},{"$f":"PROPER(MID(Exigences!E61,14,9))","v":" Niveau 1"},null,null,0,0,0,1,0,0,0,{"$f":"$R$32","v":0.9}]
[null,{"$f":"Exigences!A66","v":"7.3"},"Sensibilisation et formation",null,null,{"$f":"Exigences!C66","v":"Insuffisant"},{"$f":"Exigences!D66","v":0},{"$f":"PROPER(MID(Exigences!E66,14,9))","v":" Niveau 1"},null,null,0,0,0,1,0,0,0,{"$f":"$R$32","v":0.9}]
[null,{"$f":"Exigences!A73","v":"7.4"},"Communication",null,null,{"$f":"Exigences!C73","v":"Insuffisant"},{"$f":"Exigences!D73","v":0},{"$f":"PROPER(MID(Exigences!E73,14,9))","v":" Niveau 1"},null,null,0,0,0,1,0,0,0,{"$f":"$R$32","v":0.9}]
[null,{"$f":"Exigences!A77","v":"7.5"},"Documentation",null,null,{"$f":"Exigences!C77","v":"Insuffisant"},{"$f":"Exigences!D77","v":0},{"$f":"PROPER(MID(Exigences!E77,14,9))","v":" Niveau 1"},null,null,null,0,0,1,0,0,0,{"$f":"$R$32","v":0.9}]
[{"$f":"Exigences!A85","v":"Art. 8"},{"$f":"Exigences!B85","v":"Réalisation des activités opérationnelles"},null,null,{"$f":"Exigences!C85","v":"Insuffisant"},null,{"$f":"Exigences!D85","v":0},{"$f":"PROPER(MID(Exigences!E85,14,9))","v":" Niveau 1"},null,null,0]
[null,{"$f":"Exigences!A86","v":"8.1"},"Gestion de la réalisation",null,null,{"$f":"Exigences!C86","v":"Insuffisant"},{"$f":"Exigences!D86","v":0},{"$f":"PROPER(MID(Exigences!E86,14,9))","v":" Niveau 1"},null,null,0,0,0,1,1,0,0,{"$f":"$R$32","v":0.9}]
[null,{"$f":"Exigences!A93","v":"8.2"},"conception des documents d'activité",null,null,{"$f":"Exigences!C93","v":"Insuffisant"},{"$f":"Exigences!D93","v":0},{"$f":"PROPER(MID(Exigences!E93,14,9))","v":" Niveau 1"},null,null,0,0,0,0,1,0,0,0.9]
[null,{"$f":"Exigences!A99","v":"8.3"},"Mise en œuvre d'SGDA",null,null,{"$f":"Exigences!C99","v":"Insuffisant"},{"$f":"Exigences!D99","v":0},{"$f":"PROPER(MID(Exigences!E99,14,9))","v":" Niveau 1"},null,null,0,0,0,0,1,0,0,0.9]
[{"$f":"Exigences!A103","v":"Art. 9"},{"$f":"Exigences!B103","v":"Évaluation des performances"},null,null,{"$f":"Exigences!C103","v":"Insuffisant"},null,{"$f":"Exigences!D103","v":0},{"$f":"PROPER(MID(Exigences!E103,14,9))","v":" Niveau 1"},null,null,0]
[null,{"$f":"Exigences!A104","v":"9.1"},"Surveillance et évaluation",null,null,{"$f":"Exigences!C104","v":"Insuffisant"},{"$f":"Exigences!D104","v":0},{"$f":"PROPER(MID(Exigences!E104,14,9))","v":" Niveau 1"},null,null,0,0,0,0,1,1,0,0.9]
[null,{"$f":"Exigences!A110","v":"9.2"},"Audit interne",null,null,{"$f":"Exigences!C110","v":"Insuffisant"},{"$f":"Exigences!D110","v":0},{"$f":"PROPER(MID(Exigences!E110,14,9))","v":" Niveau 1"},null,null,0,0,0,0,0,1,0,0.9]
[null,{"$f":"Exigences!A116","v":"9.3"},"Revue de direction",null,null,{"$f":"Exigences!C116","v":"Insuffisant"},{"$f":"Exigences!D116","v":0},{"$f":"PROPER(MID(Exigences!E116,14,9))","v":" Niveau 1"},null,null,null,0,0,0,0,1,0,0.9]
[{"$f":"Exigences!A121","v":"Art. 10"},{"$f":"Exigences!B121","v":"Amélioration"},null,null,{"$f":"Exigences!C121","v":"Insuffisant"},null,{"$f":"Exigences!D121","v":0},{"$f":"PROPER(MID(Exigences!E121,14,9))","v":" Niveau 1"},null,null,0]
[null,{"$f":"Exigences!A122","v":"10.1"},"Contrôle des non-conformités et actions correctives",null,null,{"$f":"Exigences!C122","v":"Insuffisant"},{"$f":"Exigences!D122","v":0},{"$f":"PROPER(MID(Exigences!E122,14,9))","v":" Niveau 1"},null,null,0,0,0,0,0,1,1,{"$f":"$R$32","v":0.9}]
[null,{"$f":"Exigences!A132","v":"10.2"},"Amélioration continue",null,null,{"$f":"Exigences!C132","v":"Insuffisant"},{"$f":"Exigences!D132","v":0},{"$f":"PROPER(MID(Exigences!E132,14,9))","v":" Niveau 1"},null,null,0,0,0,0,0,0,1,{"$f":"$R$32","v":0.9}]

{"sheet":"Résultats par Article","index":3,"n_rows":70,"n_cols":8,"rows_kept":70,"cut":false,"hidden":false,"merged":[[3,0,3,3],[4,0,4,1],[4,2,4,3],[5,6,6,7],[9,5,9,7],[37,5,37,7],[38,5,38,7],[10,5,10,7],[11,5,11,7],[5,0,5,1],[5,2,5,3],[6,0,6,1],[18,5,18,7],[19,5,19,7],[20,5,20,7],[27,5,27,7],[28,5,28,7],[29,5,29,7],[36,5,36,7],[65,5,65,7],[54,5,54,7],[55,5,55,7],[56,5,56,7],[45,5,45,7],[46,5,46,7],[47,5,47,7],[63,5,63,7],[64,5,64,7]]}
[{"$f":"'Guide d''utilisation'!B1","v":"Document d'appui à la déclaration première partie de conformité à la norme ISO 30301:2011"},null,null,null,null,null,null,"Impression sur pages A4 100% en format horizontal"]
[null,null,null,null,"  Résultats détaillés par ARTICLE de l'autodiagnostic selon la norme ISO 30301:2011"]
[]
["Informations sur le Service Management de la Qualité",null,null,null,null,null,"Informations sur l'Autodiagnostic"]
[{"$f":"'Guide d''utilisation'!B5","v":"Etablissement :"},null,{"$f":"'Guide d''utilisation'!E5","v":"Nom de l'établissement / entreprise / organisation..."},null,{"$f":"Exigences!A4","v":"Date de l'autodiagnostic : "},{"$f":"IF(Exigences!C4=\"\",\"\",Exigences!C4)","v":""},{"$f":"Exigences!A7","v":"L'équipe d'autodiagnostic :"}]
[{"$f":"'Guide d''utilisation'!B6","v":" Responsable du SMQ : "},null,{"$f":"'Guide d''utilisation'!E6","v":"NOM et Prénom du Responsable Qualité"},null,"Responsable : ",{"$f":"IF(Exigences!C5=\"\",\"\",Exigences!C5)","v":"NOM et Prénom"},{"$f":"Exigences!C7","v":"Noms et Prénoms des participants"}]
[null,null,{"$f":"'Guide d''utilisation'!E7","v":"email :"},{"$f":"'Guide d''utilisation'!I7","v":"Tél :"},{"$f":"IF(Exigences!C6=\"\",\"\",Exigences!C6)","v":"Tél :"},{"$f":"IF(Exigences!E6=\"\",\"\",Exigences!E6)","v":"Email :"}]
[]
[null,{"$f":"Exigences!A11","v":"Art. 4"},{"$f":"Exigences!B11","v":"Contexte de l'organisme"}]
[null,"Niveau d'évaluation"," Taux de CONFORMITÉ aux critères d'exigence",null,null,"COMMENTAIRES sur les RÉSULTATS obtenus"]
[null,{"$f":"'Résultats globaux'!E34","v":"Insuffisant"},{"$f":"'Résultats globaux'!G34","v":0},null,null,"Commentaires (collectifs si possible)  :"]
[null,null,null,null,null,"DÉCISIONS : Plans d'action PRIORITAIRES"]
[null,null,null,null,null,"QUOI\nObjectifs à atteindre","QUI\nen Interne ou en Externe","QUAND ET OÙ\nDate et Champ d'application"]
[null,null,null,null,null,"Plan n°1 :"]
[null,null,null,null,null,"Plan n°2 :"]
[null,null,null,null,null,"   Plan n°3 :"]
[]
[null,{"$f":"Exigences!A25","v":"Art. 5"},{"$f":"Exigences!B25","v":"Leadership"}]
[null,"Niveau d'évaluation"," Taux de CONFORMITÉ aux critères d'exigence",null,null,"COMMENTAIRES sur les RÉSULTATS obtenus"]
[null,{"$f":"'Résultats globaux'!E38","v":"Insuffisant"},{"$f":"'Résultats globaux'!G38","v":0},null,null,"Commentaires (collectifs si possible)  :"]
[null,null,null,null,null,"DÉCISIONS : Plans d'action PRIORITAIRES"]
[null,null,null,null,null,"QUOI\nObjectifs à atteindre","QUI\nen Interne ou en Externe","QUAND ET OÙ\nDate et Champ d'application"]
[null,null,null,null,null,"Plan n°1 :"]
[null,null,null,null,null,"Plan n°2 :"]
[null,null,null,null,null,"   Plan n°3 :"]
[]
[null,{"$f":"Exigences!A41","v":"Art. 6"},{"$f":"Exigences!B41","v":"Planification"}]
[null,"Niveau d'évaluation"," Taux de CONFORMITÉ aux critères d'exigence",null,null,"COMMENTAIRES sur les RÉSULTATS obtenus"]
[null,{"$f":"'Résultats globaux'!E42","v":"Insuffisant"},{"$f":"'Résultats globaux'!G42","v":0},null,null,"Commentaires (collectifs si possible)  :"]
[null,null,null,null,null,"DÉCISIONS : Plans d'action PRIORITAIRES"]
[null,null,null,null,null,"QUOI\nObjectifs à atteindre","QUI\nen Interne ou en Externe","QUAND ET OÙ\nDate et Champ d'application"]
[null,null,null,null,null,"Plan n°1 :"]
[null,null,null,null,null,"Plan n°2 :"]
[null,null,null,null,null,"   Plan n°3 :"]
[]
[null,{"$f":"Exigences!A55","v":"Art. 7"},{"$f":"Exigences!B55","v":"Support"}]
[null,"Niveau d'évaluation"," Taux de CONFORMITÉ aux critères d'exigence",null,null,"COMMENTAIRES sur les RÉSULTATS obtenus"]
[null,{"$f":"'Résultats globaux'!E45","v":"Insuffisant"},{"$f":"'Résultats globaux'!G45","v":0},null,null,"Commentaires (collectifs si possible)  :"]
[null,null,null,null,null,"DÉCISIONS : Plans d'action PRIORITAIRES"]
[null,null,null,null,null,"QUOI\nObjectifs à atteindre","QUI\nen Interne ou en Externe","QUAND ET OÙ\nDate et Champ d'application"]
[null,null,null,null,null,"Plan n°1 :"]
[null,null,null,null,null,"Plan n°2 :"]
[null,null,null,null,null,"Plan n°3 :"]
[]
[null,{"$f":"Exigences!A85","v":"Art. 8"},{"$f":"Exigences!B85","v":"Réalisation des activités opérationnelles"}]
[null,"Niveau d'évaluation"," Taux de CONFORMITÉ aux critères d'exigence",null,null,"COMMENTAIRES sur les RÉSULTATS obtenus"]
[null,{"$f":"'Résultats globaux'!E51","v":"Insuffisant"},{"$f":"'Résultats globaux'!G51","v":0},null,null,"Commentaires (collectifs si possible)  :"]
[null,null,null,null,null,"DÉCISIONS : Plans d'action PRIORITAIRES"]
[null,null,null,null,null,"QUOI\nObjectifs à atteindre","QUI\nen Interne ou en Externe","QUAND ET OÙ\nDate et Champ d'application"]
[null,null,null,null,null,"Plan n°1 :"]
[null,null,null,null,null,"Plan n°2 :"]
[null,null,null,null,null,"Plan n°3 :"]
[]
[null,{"$f":"Exigences!A103","v":"Art. 9"},{"$f":"Exigences!B103","v":"Évaluation des performances"}]
[null,"Niveau d'évaluation"," Taux de CONFORMITÉ aux critères d'exigence",null,null,"COMMENTAIRES sur les RÉSULTATS obtenus"]
[null,{"$f":"'Résultats globaux'!E55","v":"Insuffisant"},{"$f":"'Résultats globaux'!G55","v":0},null,null,"Commentaires (collectifs si possible)  :"]
[null,null,null,null,null,"DÉCISIONS : Plans d'action PRIORITAIRES"]
[null,null,null,null,null,"QUOI\nObjectifs à atteindre","QUI\nen Interne ou en Externe","QUAND ET OÙ\nDate et Champ d'application"]
[null,null,null,null,null,"Plan n°1 :"]
[null,null,null,null,null,"Plan n°2 :"]
[null,null,null,null,null,"Plan n°3 :"]
[]
[null,{"$f":"Exigences!A121","v":"Art. 10"},{"$f":"Exigences!B121","v":"Amélioration"}]
[null,"Niveau d'évaluation"," Taux de CONFORMITÉ aux critères d'exigence",null,null,"COMMENTAIRES sur les RÉSULTATS obtenus"]
[null,{"$f":"'Résultats globaux'!E59","v":"Insuffisant"},{"$f":"'Résultats globaux'!G59","v":0},null,null,"Commentaires (collectifs si possible)  :"]
[null,null,null,null,null,"DÉCISIONS : Plans d'action PRIORITAIRES"]
[null,null,null,null,null,"QUOI\nObjectifs à atteindre","QUI\nen Interne ou en Externe","QUAND ET OÙ\nDate et Champ d'application"]
[null,null,null,null,null,"Plan n°1 :"]
[null,null,null,null,null,"Plan n°2 :"]
[null,null,null,null,null,"Plan n°3 :"]

{"sheet":"Conseils","index":4,"n_rows":33,"n_cols":7,"rows_kept":33,"cut":false,"hidden":false,"merged":[[3,0,3,2],[31,4,32,4],[6,4,8,4],[10,4,12,4],[14,4,15,4],[17,4,21,4],[23,4,25,4],[6,3,8,3],[10,3,12,3],[14,3,15,3],[17,3,21,3],[23,3,25,3],[27,3,29,3],[31,3,32,3],[9,0,9,4],[30,0,30,4],[8,6,9,6],[10,6,13,6],[14,6,15,6],[27,4,29,4],[5,0,5,4],[13,0,13,4],[16,0,16,4],[22,0,22,4],[26,0,26,4]]}
[null,null,null,"   Autodiagnostic selon la norme ISO 30301:2011"]
[null,null,null,"\"Système de gestion des documents d'activité - Exigences\", édition  Afnor, www.afnor.org, Décembre 2011"]
[]
[null,null,null,"Quelques CONSEILS pour atteindre le respect des exigences..."]
[null,null,"Articles","Quoi","Qui"]
["Art. 4    Contexte de l'organisme"]
[null,"4.1","Compréhension de l'organisme et de son contexte","L’organisme doit déterminer les enjeux internes et externes liés au contexte socio-économique dans lequel il se situe. De plus, les parties intéressées doivent être identifiées ainsi que leurs attentes et exigences. Ces dernières seront listées et revus périodiquement. L'organisme doit tenir compte, évaluer et documenter ses besoins opérationnels, les exigences légales et autres exigences . Le domaine d'application du système de gestion des documents d'activité  (SGDA) est fixé, ainsi que l'ensemble des processus nécessaires à la mise en oeuvre de ce système.","Responsable Qualité et Direction Générale"]
[null,"4.2","Exigences opérationnelles, exigences légales et autres exigences"]
[null,"4.3","Détermination du domaine d'application du SGDA",null,null,null,"Lien : UTC  - www.utc.fr/master-qualite, puis \"Travaux\" \"Qualité-Management\", réf n°451"]
["Art. 5    Leadership"]
[null,"5.1","Engagement de la direction","Dans cet article, la responsabilité de la direction est de communiquer sa politique qualité qu'elle l'appliquera et la mettra à jour par la suite. L'engagement de la direction consiste aussi à attribuer les responsabilités et les autorités au sein de l'organisme afin d'appliquer sa politique qualité.","Responsable Qualité et Direction Générale",null,"http://www.utc.fr/master-qualite/public/publications/qualite_et_management/MQ_M2/2017-2018/MIM_stages/TEBOURBI_Imen/index.html"]
[null,"5.2","Politique "]
[null,"5.3","Rôles, responsabilités et habilitations au sein de l'organisme"]
["Art. 6    Planification "]
[null,"6.1","Actions à mener pour prendre en compte les risques et opportunités","Ce paragraphe stipule l’identification des risques liés aux enjeux de l’organisme et de prendre les mesures nécessaires pour y remédier.\nDes objectifs fixés, pertinents et cohérents avec la politique sont à atteindre ,concernant les documents d'activité, doivent être documentés, communiqués à l’ensemble des acteurs afin de pouvoir évaluer la performance.","Responsable Qualité et Direction Générale"]
[null,"6.2","Objectifs à atteindre pour les documents d'activité et moyens à mettre en œuvre"]
["Art. 7    Support"]
[null,"7.1","Ressources","Les ressources humaines et matérielles nécessaires sont mises à disposition pour la mise en oeuvre du SGDA. Les compétences de personnels qui ont un impact direct sur les processus liés aux documents et les systèmes documentaires sont déterminées. \nD'autre part, sur le volet informationnel, l'organisme doit planifier des réunions périodiques et des entretiens avec l'ensemble des pilotes de processus. Ceci pour vérifier l'existence, la conformité et l'application sur le terrain des dispositions demandées. Toutes les informations documentées exigées doivent ainsi être créées, mises à jour, validées, diffusées et utilisées par l'ensemble des parties prenantes.","Responsable Qualité et pilotes de processus (RH, Système informatique, Gestion administrative, gestion financière, Maintenance et Infrastructures)"]
[null,"7.2","Compétences"]
[null,"7.3","Sensibilisation et formation"]
[null,"7.4","Communication"]
[null,"7.5","Documentation"]
["Art. 8    Réalisation "]
[null,"8.1","Planification et contrôle de la réalisation","L'organisme doit déterminer, planifier, mettre en œuvre et contrôler les processus nécessaires à la réalisation des activités opérationnelles, après avoir recensé les besoins de clients et receuilli les informations documentées explicitant ces besoins. Pour assurer la continuité de l'activité, il est nécessaire d'analyser  les processus de façon continue afin de faire face aux risques. Ensuite, les informations relatives aux  actions menées doivent être documentées et conservées. Il est également essentiel de faire des simulations afin de valider les bons comportements du système documentaire."," Direction Générale, Responsable Qualité, pilotes des processus, Personnel"]
[null,"8.2","Conception des processus liés aux documents d'activité"]
[null,"8.3","Mise en œuvre de système documentaire"]
["Art. 9    Évaluation des performances"]
[null,"9.1","Surveillance, mesure, analyse et évaluation","La version ISO 30301 : 2011 renforce l'évaluation de la performance d'un système de gestion des documents d'activité. Cela requiert la mise en place de moyen de surveillance et de mesure des résultats obtenus. Ces résultats attendus, en interne comme en externe, concerne l'efficacité des systèmes documentaires ainsi que la satisfaction des parties intéressées. Cela nécessite d’avoir une surveillance constante sur les processus afin de réagir en cas d'anomalie . Il est important de programmer des audits internes de façon périodique, en fournissant les moyens nécessaires (humains et matériels) afin d'entreprendre sans délai indu la correction et les actions correctives appropriées s'il y a écart."," Direction Générale, Responsable Qualité, pilotes des processus, Personnel"]
[null,"9.2","Audit interne"]
[null,"9.3","Revue de direction"]
["Art. 10    Amélioration"]
[null,"10.1","Contrôle des non-conformités et actions correctives","Les besoins et les attentes des parties intéressées doivent être prises en considération pour améliorer la performance de vos activités. Il est important d’étudier l’évolution des besoins des clients, des compétences, des exigences réglementaires ou tout autre facteur. L'organisme s'engage donc à améliorer en continu son système de gestion des documents d'activité. Cela passe par la correction des anomalies et des non conformités , mais aussi par les actions préventives suite à l'étude et l'analyse des résultats d'évaluation de la performance du SGDA. L'organisme sera donc constamment dans une optique d'amélioration continue."," Direction Générale, Responsable Qualité, pilotes des processus, Personnel"]
[null,"10.2"," Amélioration continue"]